,Portfolio,Expense Area,Cost Centre,Expense Type,Account Code,Amount,Supplier Name,SupplierId,Pay Date,Transaction No.
INSERTED DETAIL,Resources & Corporate Governance ,TREE WORKS,WGM01,Vehicle Repair and Maintenance,0200,4.84,Arrow Engineering Supply Co Ltd,100016,17/10/2013,10192298
INSERTED DETAIL,Resources & Corporate Governance,Housing Maintenance,WHM00,Materials,0303,31.48,Arrow Engineering Supply Co Ltd,100016,17/10/2013,10192298
INSERTED DETAIL,Resources & Corporate Governance ,Grounds Maintenance,WGM00,Tools,0304,6.23,Arrow Engineering Supply Co Ltd,100016,17/10/2013,10192298
INSERTED DETAIL,Resources & Corporate Governance ,Garage Internal,WVR01,Personal Protective Clothing,0340,23.94,Arrow Engineering Supply Co Ltd,100016,17/10/2013,10192298
INSERTED DETAIL,Capital Program ,Vehicle Workshop Extension,VWE00,Capital Contract Payments,5000,755.72,Arrow Engineering Supply Co Ltd,100016,17/10/2013,10192298
INSERTED DETAIL,Sustainable Inclusive Communities,Housing Options Team,HOT00,Rents,0140,1504.00,Alma Lodge Hotel,100026,03/10/2013,10191688
INSERTED DETAIL,Sustainable Inclusive Communities,Housing Options Team,HOT00,Rents,0140,992.00,Alma Lodge Hotel,100026,24/10/2013,10192570
INSERTED DETAIL,Sustainable Inclusive Communities,Housing Options Team,HOT00,Rents,0140,700.00,Alma Lodge Hotel,100026,24/10/2013,10192571
INSERTED DETAIL,Sustainable Inclusive Communities,Housing Options Team,HOT00,Rents,0140,1325.00,Alma Lodge Hotel,100026,24/10/2013,10192572
INSERTED DETAIL,Sustainable Inclusive Communities,Housing Options Team,HOT00,Rents,0140,1980.00,Alma Lodge Hotel,100026,24/10/2013,10192799
INSERTED DETAIL,Housing Revenue Account ,Unplanned Maintenance and Repair,UMR00,R&M External Contractors,0100,1254.75,AWM Electrical Contractors Ltd,100051,03/10/2013,10191601
INSERTED DETAIL,Housing Revenue Account ,Repairs and Maintenance - Void works,UMR09,R&M External Contractors,0100,599.40,AWM Electrical Contractors Ltd,100051,03/10/2013,10191601
INSERTED DETAIL,Sustainable Inclusive Communities,Woodside Park,TVR00,R&M External Contractors,0100,17.02,AWM Electrical Contractors Ltd,100051,03/10/2013,10191604
INSERTED DETAIL,Housing Revenue Account ,Unplanned Maintenance and Repair,UMR00,R&M External Contractors,0100,1297.01,AWM Electrical Contractors Ltd,100051,03/10/2013,10191604
INSERTED DETAIL,Housing Revenue Account ,Repairs and Maintenance - Void works,UMR09,R&M External Contractors,0100,799.31,AWM Electrical Contractors Ltd,100051,03/10/2013,10191604
INSERTED DETAIL,Housing Revenue Account ,Unplanned Maintenance and Repair,UMR00,R&M External Contractors,0100,599.19,AWM Electrical Contractors Ltd,100051,03/10/2013,10191937
INSERTED DETAIL,Sustainable Inclusive Communities,Woodside Park,TVR00,R&M External Contractors,0100,67.99,AWM Electrical Contractors Ltd,100051,03/10/2013,10191957
INSERTED DETAIL,Housing Revenue Account ,Unplanned Maintenance and Repair,UMR00,R&M External Contractors,0100,6274.42,AWM Electrical Contractors Ltd,100051,03/10/2013,10191957
INSERTED DETAIL,Housing Revenue Account ,Repairs and Maintenance - Void works,UMR09,R&M External Contractors,0100,134.28,AWM Electrical Contractors Ltd,100051,03/10/2013,10191957
INSERTED DETAIL,Capital Program ,Fire Risk Assessment,HCE18,Capital Contract Payments,5000,102.81,AWM Electrical Contractors Ltd,100051,03/10/2013,10191957
INSERTED DETAIL,Housing Revenue Account ,Unplanned Maintenance and Repair,UMR00,R&M External Contractors,0100,2064.73,AWM Electrical Contractors Ltd,100051,10/10/2013,10192426
INSERTED DETAIL,Housing Revenue Account ,Repairs and Maintenance - Void works,UMR09,R&M External Contractors,0100,77.98,AWM Electrical Contractors Ltd,100051,10/10/2013,10192426
INSERTED DETAIL,Housing Revenue Account ,Unplanned Maintenance and Repair,UMR00,R&M External Contractors,0100,577.67,AWM Electrical Contractors Ltd,100051,10/10/2013,10192427
INSERTED DETAIL,Housing Revenue Account ,Repairs and Maintenance - Void works,UMR09,R&M External Contractors,0100,199.58,AWM Electrical Contractors Ltd,100051,10/10/2013,10192427
INSERTED DETAIL,Housing Revenue Account ,Unplanned Maintenance and Repair,UMR00,R&M External Contractors,0100,491.91,AWM Electrical Contractors Ltd,100051,10/10/2013,10192430
INSERTED DETAIL,Housing Revenue Account ,Repairs and Maintenance - Void works,UMR09,R&M External Contractors,0100,1301.01,AWM Electrical Contractors Ltd,100051,10/10/2013,10192430
INSERTED DETAIL,Sustainable Inclusive Communities,Woodside Park,TVR00,R&M External Contractors,0100,85.10,AWM Electrical Contractors Ltd,100051,31/10/2013,10193128
INSERTED DETAIL,Housing Revenue Account ,Unplanned Maintenance and Repair,UMR00,R&M External Contractors,0100,1598.05,AWM Electrical Contractors Ltd,100051,31/10/2013,10193128
INSERTED DETAIL,Housing Revenue Account ,Supervision and Management General,MAN00,Movement Incentives,0454,34.04,AWM Electrical Contractors Ltd,100051,31/10/2013,10193128
INSERTED DETAIL,Housing Revenue Account ,Unplanned Maintenance and Repair,UMR00,R&M External Contractors,0100,1365.01,AWM Electrical Contractors Ltd,100051,24/10/2013,10193130
INSERTED DETAIL,Housing Revenue Account ,Unplanned Maintenance and Repair,UMR00,R&M External Contractors,0100,2637.57,AWM Electrical Contractors Ltd,100051,31/10/2013,10193180
INSERTED DETAIL,Capital Program ,Kitchen Modifications,HIK10,Capital Contract Payments,5000,560.00,A C E Carpentry & Joinery Contractors Ltd,100085,03/10/2013,10191743
INSERTED DETAIL,Capital Program ,Kitchen Modifications,HIK10,Capital Contract Payments,5000,9191.44,A C E Carpentry & Joinery Contractors Ltd,100085,03/10/2013,10191864
INSERTED DETAIL,Capital Program ,Kitchen Modifications,HIK10,Capital Contract Payments,5000,9191.44,A C E Carpentry & Joinery Contractors Ltd,100085,10/10/2013,10192345
INSERTED DETAIL,Capital Program ,Kitchen Modifications,HIK10,Capital Contract Payments,5000,9191.44,A C E Carpentry & Joinery Contractors Ltd,100085,17/10/2013,10192663
INSERTED DETAIL,Capital Program ,Kitchen Modifications,HIK10,Capital Contract Payments,5000,9191.44,A C E Carpentry & Joinery Contractors Ltd,100085,24/10/2013,10192971
INSERTED DETAIL,Capital Program ,Kitchen Modifications,HIK10,Capital Contract Payments,5000,9191.44,A C E Carpentry & Joinery Contractors Ltd,100085,31/10/2013,10193192
INSERTED DETAIL,Capital Program ,Kitchen Modifications,HIK10,Capital Contract Payments,5000,1223.00,A C E Carpentry & Joinery Contractors Ltd,100085,31/10/2013,10193256
INSERTED DETAIL,Capital Program ,Bathroom Modifications,HIS01,Capital Contract Payments,5000,620.00,A C E Carpentry & Joinery Contractors Ltd,100085,31/10/2013,10193256
INSERTED DETAIL,Capital Program ,Kitchen Modifications,HIK10,Capital Contract Payments,5000,1402.44,A C E Carpentry & Joinery Contractors Ltd,100085,31/10/2013,10193257
INSERTED DETAIL,Economy Development & Culture,Decrim. of Car Parking on street parking,DPE02,Maintenance of Equipment,0301,714.27,Cale Briparc Ltd,100158,10/10/2013,10191996
INSERTED DETAIL,Economy Development & Culture,Decrim. of Car Parking on street parking,DPE02,R&M External Contractors,0100,510.00,Cale Briparc Ltd,100158,17/10/2013,10192852
INSERTED DETAIL,Resources & Corporate Governance ,Council Tax and NNDR Collection,CTX01,External Contractor & Operator,0742,42.50,Bristow & Sutor,100159,17/10/2013,10192728
INSERTED DETAIL,Economy Development & Culture,Car Parks General,CPK01,Subscriptions,0421,123.80,British Parking Association,100176,10/10/2013,10192392
INSERTED DETAIL,Economy Development & Culture,Decrim. of Car Parking on street parking,DPE02,Subscriptions,0421,495.20,British Parking Association,100176,10/10/2013,10192392
INSERTED DETAIL,Resources & Corporate Governance,Corporate Property R&M,CPA01,R&M External Contractors,0100,502.00,Bowen Builders,100241,24/10/2013,10192738
INSERTED DETAIL,Housing Revenue Account ,Unplanned Maintenance and Repair,UMR00,R&M External Contractors,0100,2903.60,Barron McCann Ltd,100248,03/10/2013,10192219
INSERTED DETAIL,Housing Revenue Account ,Unplanned Maintenance and Repair,UMR00,R&M External Contractors,0100,2788.13,Barron McCann Ltd,100248,24/10/2013,10193076
INSERTED DETAIL,Housing Revenue Account ,Control Centre CCTV,CCE01,New Equipment,0300,1969.44,Barron McCann Ltd,100248,24/10/2013,10193076
INSERTED DETAIL,Resources & Corporate Governance ,Domestic Waste Collection,WWC00,Vehicle Repair and Maintenance,0200,899.82,Carwood Motor Units Ltd,100300,03/10/2013,10191741
INSERTED DETAIL,Resources & Corporate Governance ,Trade Waste Collection,WWC01,Vehicle Repair and Maintenance,0200,99.98,Carwood Motor Units Ltd,100300,03/10/2013,10191741
INSERTED DETAIL,Resources & Corporate Governance ,Head of Customer and Information Services,CIS00,Training fees,0011,4242.60,Coventry University,100321,31/10/2013,10193140
INSERTED DETAIL,Resources & Corporate Governance,Housing Maintenance,WHM00,External Contractor & Operator,0742,631.66,Cwikskip (Tailby Brack Ltd),100325,10/10/2013,10192007
INSERTED DETAIL,Resources & Corporate Governance ,Human Resources Centralised Services,RES31,Training fees,0011,2047.25,Cipfa,100349,17/10/2013,10192707
INSERTED DETAIL,Economy Development & Culture,Economic Development General,ECD00,Development Activities,0450,600.00,Coventry & Warwickshire Chamber Of Commerce,100412,10/10/2013,10192423
INSERTED DETAIL,Resources & Corporate Governance,Corporate Property R&M,CPA01,R&M External Contractors,0100,1327.85,Contract Fire Systems Ltd,100425,03/10/2013,10191941
INSERTED DETAIL,Economy Development & Culture,Art Gallery and Museum,AGM00,Contract Cleaning,0170,330.12,OCS Group UK Ltd t/a Cannon,100436,03/10/2013,10189867
INSERTED DETAIL,Economy Development & Culture,The Benn Hall,BHL00,Contract Cleaning,0170,213.24,OCS Group UK Ltd t/a Cannon,100436,03/10/2013,10189867
INSERTED DETAIL,Resources & Corporate Governance ,Town Hall,OFF00,Contract Cleaning,0170,383.76,OCS Group UK Ltd t/a Cannon,100436,03/10/2013,10189867
INSERTED DETAIL,Economy Development & Culture,Decrim. of Car Parking on street parking,DPE02,Other Miscellaneous Expenses,0444,21.36,OCS Group UK Ltd t/a Cannon,100436,03/10/2013,10189867
INSERTED DETAIL,Sustainable Environment ,Parks,PKS00,External Contractor & Operator,0742,106.68,OCS Group UK Ltd t/a Cannon,100436,03/10/2013,10189867
INSERTED DETAIL,Resources & Corporate Governance ,Domestic Waste Collection,WWC00,Vehicle Repair and Maintenance,0200,111.15,Dennis Eagle Ltd,100559,03/10/2013,10191763
INSERTED DETAIL,Resources & Corporate Governance ,Trade Waste Collection,WWC01,Vehicle Repair and Maintenance,0200,974.18,Dennis Eagle Ltd,100559,03/10/2013,10191763
INSERTED DETAIL,Resources & Corporate Governance ,Domestic Waste Collection,WWC00,Vehicle Repair and Maintenance,0200,639.62,Dennis Eagle Ltd,100559,03/10/2013,10191851
INSERTED DETAIL,Resources & Corporate Governance ,Domestic Waste Collection,WWC00,Vehicle Repair and Maintenance,0200,974.18,Dennis Eagle Ltd,100559,31/10/2013,10192963
INSERTED DETAIL,Resources & Corporate Governance ,Domestic Waste Collection,WWC00,Vehicle Repair and Maintenance,0200,575.57,Dennis Eagle Ltd,100559,31/10/2013,10193113
INSERTED DETAIL,Capital Program ,Bathroom Modifications,HIS01,Capital Contract Payments,5000,32195.00,JADA Building & Maintenance Services Ltd,100583,03/10/2013,10191902
INSERTED DETAIL,Capital Program ,Bathroom Modifications,HIS01,Capital Contract Payments,5000,19880.00,JADA Building & Maintenance Services Ltd,100583,10/10/2013,10192344
INSERTED DETAIL,Capital Program ,Bathroom Modifications,HIS01,Capital Contract Payments,5000,18190.00,JADA Building & Maintenance Services Ltd,100583,17/10/2013,10192664
INSERTED DETAIL,Capital Program ,Bathroom Modifications,HIS01,Capital Contract Payments,5000,22375.00,JADA Building & Maintenance Services Ltd,100583,24/10/2013,10193138
INSERTED DETAIL,Capital Program ,Bathroom Modifications,HIS01,Capital Contract Payments,5000,14970.00,JADA Building & Maintenance Services Ltd,100583,31/10/2013,10193253
INSERTED DETAIL,Housing Revenue Account ,Repairs and Maintenance - Void works,UMR09,R&M External Contractors,0100,1053.15,Dulux Decorator Centres,100597,24/10/2013,10192411
INSERTED DETAIL,Economy Development & Culture,Art Gallery and Museum,AGM00,New Equipment,0300,492.00,ESPO,100641,03/10/2013,10191846
INSERTED DETAIL,Housing Revenue Account ,Albert Square AP,AGP20,Gas,0131,875.62,ESPO,100641,24/10/2013,10192746
INSERTED DETAIL,Housing Revenue Account ,Lesley Souter House AP,AGP16,Gas,0131,803.27,ESPO,100641,24/10/2013,10192747
INSERTED DETAIL,Housing Revenue Account ,Tanser Court AP,AGP17,Gas,0131,934.40,ESPO,100641,24/10/2013,10192748
INSERTED DETAIL,Resources & Corporate Governance,Corporate Property Central Utilities,CPA02,Gas,0131,661.28,ESPO,100641,24/10/2013,10192765
INSERTED DETAIL,Resources & Corporate Governance,Corporate Property Central Utilities,CPA02,Gas,0131,1088.00,ESPO,100641,24/10/2013,10192768
INSERTED DETAIL,Capital Program ,Fire Risk Assessment,HCE18,Capital Contract Payments,5000,2237.57,Nationwide Windows Ltd,100808,03/10/2013,10192085
INSERTED DETAIL,Capital Program ,Fire Risk Assessment,HCE18,Capital Contract Payments,5000,2237.57,Nationwide Windows Ltd,100808,03/10/2013,10192086
INSERTED DETAIL,Capital Program ,Fire Risk Assessment,HCE18,Capital Contract Payments,5000,2237.57,Nationwide Windows Ltd,100808,03/10/2013,10192087
INSERTED DETAIL,Capital Program ,Fire Risk Assessment,HCE18,Capital Contract Payments,5000,2237.57,Nationwide Windows Ltd,100808,03/10/2013,10192088
INSERTED DETAIL,Capital Program ,Fire Risk Assessment,HCE18,Capital Contract Payments,5000,2237.57,Nationwide Windows Ltd,100808,03/10/2013,10192089
INSERTED DETAIL,Capital Program ,Fire Risk Assessment,HCE18,Capital Contract Payments,5000,2237.57,Nationwide Windows Ltd,100808,03/10/2013,10192090
INSERTED DETAIL,Capital Program ,Fire Risk Assessment,HCE18,Capital Contract Payments,5000,2237.57,Nationwide Windows Ltd,100808,03/10/2013,10192091
INSERTED DETAIL,Capital Program ,Fire Risk Assessment,HCE18,Capital Contract Payments,5000,2237.57,Nationwide Windows Ltd,100808,03/10/2013,10192092
INSERTED DETAIL,Capital Program ,Fire Risk Assessment,HCE18,Capital Contract Payments,5000,2237.57,Nationwide Windows Ltd,100808,03/10/2013,10192093
INSERTED DETAIL,Capital Program ,Fire Risk Assessment,HCE18,Capital Contract Payments,5000,2237.57,Nationwide Windows Ltd,100808,03/10/2013,10192094
INSERTED DETAIL,Capital Program ,Fire Risk Assessment,HCE18,Capital Contract Payments,5000,2237.57,Nationwide Windows Ltd,100808,03/10/2013,10192095
INSERTED DETAIL,Capital Program ,Fire Risk Assessment,HCE18,Capital Contract Payments,5000,2237.57,Nationwide Windows Ltd,100808,03/10/2013,10192096
INSERTED DETAIL,Capital Program ,Fire Risk Assessment,HCE18,Capital Contract Payments,5000,2237.57,Nationwide Windows Ltd,100808,03/10/2013,10192097
INSERTED DETAIL,Capital Program ,Fire Risk Assessment,HCE18,Capital Contract Payments,5000,2237.57,Nationwide Windows Ltd,100808,03/10/2013,10192098
INSERTED DETAIL,Capital Program ,Fire Risk Assessment,HCE18,Capital Contract Payments,5000,2237.57,Nationwide Windows Ltd,100808,03/10/2013,10192099
INSERTED DETAIL,Capital Program ,Fire Risk Assessment,HCE18,Capital Contract Payments,5000,2237.57,Nationwide Windows Ltd,100808,03/10/2013,10192100
INSERTED DETAIL,Capital Program ,Fire Risk Assessment,HCE18,Capital Contract Payments,5000,2237.57,Nationwide Windows Ltd,100808,03/10/2013,10192101
INSERTED DETAIL,Capital Program ,Fire Risk Assessment,HCE18,Capital Contract Payments,5000,2237.57,Nationwide Windows Ltd,100808,03/10/2013,10192102
INSERTED DETAIL,Capital Program ,Fire Risk Assessment,HCE18,Capital Contract Payments,5000,2237.57,Nationwide Windows Ltd,100808,03/10/2013,10192103
INSERTED DETAIL,Capital Program ,Fire Risk Assessment,HCE18,Capital Contract Payments,5000,2237.57,Nationwide Windows Ltd,100808,03/10/2013,10192104
INSERTED DETAIL,Capital Program ,Fire Risk Assessment,HCE18,Capital Contract Payments,5000,2237.57,Nationwide Windows Ltd,100808,03/10/2013,10192105
INSERTED DETAIL,Capital Program ,Fire Risk Assessment,HCE18,Capital Contract Payments,5000,2237.57,Nationwide Windows Ltd,100808,03/10/2013,10192106
INSERTED DETAIL,Capital Program ,Fire Risk Assessment,HCE18,Capital Contract Payments,5000,2237.57,Nationwide Windows Ltd,100808,03/10/2013,10192107
INSERTED DETAIL,Capital Program ,Fire Risk Assessment,HCE18,Capital Contract Payments,5000,2237.57,Nationwide Windows Ltd,100808,03/10/2013,10192108
INSERTED DETAIL,Capital Program ,Fire Risk Assessment,HCE18,Capital Contract Payments,5000,2237.57,Nationwide Windows Ltd,100808,03/10/2013,10192109
INSERTED DETAIL,Capital Program ,Fire Risk Assessment,HCE18,Capital Contract Payments,5000,2237.57,Nationwide Windows Ltd,100808,03/10/2013,10192110
INSERTED DETAIL,Capital Program ,Fire Risk Assessment,HCE18,Capital Contract Payments,5000,2237.57,Nationwide Windows Ltd,100808,03/10/2013,10192111
INSERTED DETAIL,Capital Program ,Fire Risk Assessment,HCE18,Capital Contract Payments,5000,2237.57,Nationwide Windows Ltd,100808,03/10/2013,10192112
INSERTED DETAIL,Capital Program ,Fire Risk Assessment,HCE18,Capital Contract Payments,5000,2237.57,Nationwide Windows Ltd,100808,03/10/2013,10192113
INSERTED DETAIL,Capital Program ,Fire Risk Assessment,HCE18,Capital Contract Payments,5000,2237.57,Nationwide Windows Ltd,100808,03/10/2013,10192114
INSERTED DETAIL,Capital Program ,Fire Risk Assessment,HCE18,Capital Contract Payments,5000,2237.57,Nationwide Windows Ltd,100808,03/10/2013,10192115
INSERTED DETAIL,Capital Program ,Fire Risk Assessment,HCE18,Capital Contract Payments,5000,2237.57,Nationwide Windows Ltd,100808,03/10/2013,10192116
INSERTED DETAIL,Capital Program ,Fire Risk Assessment,HCE18,Capital Contract Payments,5000,2237.57,Nationwide Windows Ltd,100808,03/10/2013,10192117
INSERTED DETAIL,Capital Program ,Fire Risk Assessment,HCE18,Capital Contract Payments,5000,2237.57,Nationwide Windows Ltd,100808,03/10/2013,10192118
INSERTED DETAIL,Capital Program ,Fire Risk Assessment,HCE18,Capital Contract Payments,5000,2237.57,Nationwide Windows Ltd,100808,03/10/2013,10192119
INSERTED DETAIL,Capital Program ,Fire Risk Assessment,HCE18,Capital Contract Payments,5000,2237.57,Nationwide Windows Ltd,100808,03/10/2013,10192120
INSERTED DETAIL,Capital Program ,Fire Risk Assessment,HCE18,Capital Contract Payments,5000,2237.57,Nationwide Windows Ltd,100808,03/10/2013,10192121
INSERTED DETAIL,Capital Program ,Fire Risk Assessment,HCE18,Capital Contract Payments,5000,2237.57,Nationwide Windows Ltd,100808,03/10/2013,10192122
INSERTED DETAIL,Capital Program ,Fire Risk Assessment,HCE18,Capital Contract Payments,5000,2237.57,Nationwide Windows Ltd,100808,03/10/2013,10192123
INSERTED DETAIL,Capital Program ,Fire Risk Assessment,HCE18,Capital Contract Payments,5000,2237.57,Nationwide Windows Ltd,100808,03/10/2013,10192124
INSERTED DETAIL,Capital Program ,Fire Risk Assessment,HCE18,Capital Contract Payments,5000,2237.57,Nationwide Windows Ltd,100808,03/10/2013,10192125
INSERTED DETAIL,Capital Program ,Fire Risk Assessment,HCE18,Capital Contract Payments,5000,2237.57,Nationwide Windows Ltd,100808,03/10/2013,10192126
INSERTED DETAIL,Capital Program ,Fire Risk Assessment,HCE18,Capital Contract Payments,5000,2237.57,Nationwide Windows Ltd,100808,03/10/2013,10192127
INSERTED DETAIL,Capital Program ,Fire Risk Assessment,HCE18,Capital Contract Payments,5000,2237.57,Nationwide Windows Ltd,100808,03/10/2013,10192128
INSERTED DETAIL,Capital Program ,Fire Risk Assessment,HCE18,Capital Contract Payments,5000,2237.57,Nationwide Windows Ltd,100808,03/10/2013,10192129
INSERTED DETAIL,Capital Program ,Fire Risk Assessment,HCE18,Capital Contract Payments,5000,2237.57,Nationwide Windows Ltd,100808,03/10/2013,10192130
INSERTED DETAIL,Capital Program ,Fire Risk Assessment,HCE18,Capital Contract Payments,5000,2237.57,Nationwide Windows Ltd,100808,03/10/2013,10192131
INSERTED DETAIL,Capital Program ,Fire Risk Assessment,HCE18,Capital Contract Payments,5000,2237.57,Nationwide Windows Ltd,100808,03/10/2013,10192132
INSERTED DETAIL,Capital Program ,Fire Risk Assessment,HCE18,Capital Contract Payments,5000,2237.57,Nationwide Windows Ltd,100808,03/10/2013,10192133
INSERTED DETAIL,Capital Program ,Fire Risk Assessment,HCE18,Capital Contract Payments,5000,2237.57,Nationwide Windows Ltd,100808,03/10/2013,10192134
INSERTED DETAIL,Capital Program ,Fire Risk Assessment,HCE18,Capital Contract Payments,5000,2237.57,Nationwide Windows Ltd,100808,03/10/2013,10192135
INSERTED DETAIL,Capital Program ,Fire Risk Assessment,HCE18,Capital Contract Payments,5000,2237.57,Nationwide Windows Ltd,100808,03/10/2013,10192136
INSERTED DETAIL,Capital Program ,Fire Risk Assessment,HCE18,Capital Contract Payments,5000,2237.57,Nationwide Windows Ltd,100808,03/10/2013,10192137
INSERTED DETAIL,Capital Program ,Fire Risk Assessment,HCE18,Capital Contract Payments,5000,2237.57,Nationwide Windows Ltd,100808,03/10/2013,10192138
INSERTED DETAIL,Capital Program ,Fire Risk Assessment,HCE18,Capital Contract Payments,5000,2237.57,Nationwide Windows Ltd,100808,03/10/2013,10192139
INSERTED DETAIL,Capital Program ,Fire Risk Assessment,HCE18,Capital Contract Payments,5000,2237.57,Nationwide Windows Ltd,100808,03/10/2013,10192140
INSERTED DETAIL,Capital Program ,Fire Risk Assessment,HCE18,Capital Contract Payments,5000,2237.57,Nationwide Windows Ltd,100808,03/10/2013,10192141
INSERTED DETAIL,Capital Program ,Fire Risk Assessment,HCE18,Capital Contract Payments,5000,2237.57,Nationwide Windows Ltd,100808,03/10/2013,10192142
INSERTED DETAIL,Capital Program ,Fire Risk Assessment,HCE18,Capital Contract Payments,5000,2237.57,Nationwide Windows Ltd,100808,03/10/2013,10192144
INSERTED DETAIL,Capital Program ,Fire Risk Assessment,HCE18,Capital Contract Payments,5000,2237.57,Nationwide Windows Ltd,100808,03/10/2013,10192145
INSERTED DETAIL,Capital Program ,Fire Risk Assessment,HCE18,Capital Contract Payments,5000,2237.57,Nationwide Windows Ltd,100808,03/10/2013,10192146
INSERTED DETAIL,Capital Program ,Fire Risk Assessment,HCE18,Capital Contract Payments,5000,2237.57,Nationwide Windows Ltd,100808,03/10/2013,10192148
INSERTED DETAIL,Capital Program ,Fire Risk Assessment,HCE18,Capital Contract Payments,5000,2237.57,Nationwide Windows Ltd,100808,03/10/2013,10192149
INSERTED DETAIL,Capital Program ,Fire Risk Assessment,HCE18,Capital Contract Payments,5000,2237.57,Nationwide Windows Ltd,100808,03/10/2013,10192150
INSERTED DETAIL,Capital Program ,Fire Risk Assessment,HCE18,Capital Contract Payments,5000,2237.57,Nationwide Windows Ltd,100808,03/10/2013,10192152
INSERTED DETAIL,Capital Program ,Fire Risk Assessment,HCE18,Capital Contract Payments,5000,2237.57,Nationwide Windows Ltd,100808,03/10/2013,10192153
INSERTED DETAIL,Capital Program ,Fire Risk Assessment,HCE18,Capital Contract Payments,5000,2237.57,Nationwide Windows Ltd,100808,03/10/2013,10192154
INSERTED DETAIL,Capital Program ,Fire Risk Assessment,HCE18,Capital Contract Payments,5000,2237.57,Nationwide Windows Ltd,100808,03/10/2013,10192155
INSERTED DETAIL,Capital Program ,Fire Risk Assessment,HCE18,Capital Contract Payments,5000,2237.57,Nationwide Windows Ltd,100808,03/10/2013,10192156
INSERTED DETAIL,Capital Program ,Fire Risk Assessment,HCE18,Capital Contract Payments,5000,2237.57,Nationwide Windows Ltd,100808,03/10/2013,10192157
INSERTED DETAIL,Capital Program ,Fire Risk Assessment,HCE18,Capital Contract Payments,5000,2237.57,Nationwide Windows Ltd,100808,03/10/2013,10192158
INSERTED DETAIL,Capital Program ,Fire Risk Assessment,HCE18,Capital Contract Payments,5000,2237.57,Nationwide Windows Ltd,100808,03/10/2013,10192159
INSERTED DETAIL,Capital Program ,Fire Risk Assessment,HCE18,Capital Contract Payments,5000,2237.57,Nationwide Windows Ltd,100808,03/10/2013,10192160
INSERTED DETAIL,Capital Program ,Fire Risk Assessment,HCE18,Capital Contract Payments,5000,2237.57,Nationwide Windows Ltd,100808,03/10/2013,10192161
INSERTED DETAIL,Capital Program ,Fire Risk Assessment,HCE18,Capital Contract Payments,5000,2237.57,Nationwide Windows Ltd,100808,03/10/2013,10192162
INSERTED DETAIL,Capital Program ,Fire Risk Assessment,HCE18,Capital Contract Payments,5000,2237.57,Nationwide Windows Ltd,100808,03/10/2013,10192163
INSERTED DETAIL,Capital Program ,Fire Risk Assessment,HCE18,Capital Contract Payments,5000,2237.57,Nationwide Windows Ltd,100808,03/10/2013,10192164
INSERTED DETAIL,Capital Program ,Fire Risk Assessment,HCE18,Capital Contract Payments,5000,2237.57,Nationwide Windows Ltd,100808,03/10/2013,10192165
INSERTED DETAIL,Capital Program ,Fire Risk Assessment,HCE18,Capital Contract Payments,5000,2237.57,Nationwide Windows Ltd,100808,03/10/2013,10192166
INSERTED DETAIL,Capital Program ,Fire Risk Assessment,HCE18,Capital Contract Payments,5000,2237.57,Nationwide Windows Ltd,100808,03/10/2013,10192167
INSERTED DETAIL,Capital Program ,Fire Risk Assessment,HCE18,Capital Contract Payments,5000,2237.57,Nationwide Windows Ltd,100808,03/10/2013,10192168
INSERTED DETAIL,Capital Program ,Fire Risk Assessment,HCE18,Capital Contract Payments,5000,2237.57,Nationwide Windows Ltd,100808,03/10/2013,10192170
INSERTED DETAIL,Capital Program ,Fire Risk Assessment,HCE18,Capital Contract Payments,5000,2237.57,Nationwide Windows Ltd,100808,03/10/2013,10192171
INSERTED DETAIL,Capital Program ,Fire Risk Assessment,HCE18,Capital Contract Payments,5000,2237.57,Nationwide Windows Ltd,100808,03/10/2013,10192173
INSERTED DETAIL,Capital Program ,Fire Risk Assessment,HCE18,Capital Contract Payments,5000,2237.57,Nationwide Windows Ltd,100808,03/10/2013,10192174
INSERTED DETAIL,Capital Program ,Fire Risk Assessment,HCE18,Capital Contract Payments,5000,2237.57,Nationwide Windows Ltd,100808,03/10/2013,10192175
INSERTED DETAIL,Capital Program ,Fire Risk Assessment,HCE18,Capital Contract Payments,5000,2237.57,Nationwide Windows Ltd,100808,03/10/2013,10192176
INSERTED DETAIL,Capital Program ,Fire Risk Assessment,HCE18,Capital Contract Payments,5000,2237.57,Nationwide Windows Ltd,100808,03/10/2013,10192177
INSERTED DETAIL,Capital Program ,Fire Risk Assessment,HCE18,Capital Contract Payments,5000,2237.57,Nationwide Windows Ltd,100808,03/10/2013,10192178
INSERTED DETAIL,Capital Program ,Fire Risk Assessment,HCE18,Capital Contract Payments,5000,2237.57,Nationwide Windows Ltd,100808,03/10/2013,10192179
INSERTED DETAIL,Capital Program ,Fire Risk Assessment,HCE18,Capital Contract Payments,5000,33563.55,Nationwide Windows Ltd,100808,10/10/2013,10192355
INSERTED DETAIL,Capital Program ,Fire Risk Assessment,HCE18,Capital Contract Payments,5000,16668.11,Nationwide Windows Ltd,100808,17/10/2013,10192784
INSERTED DETAIL,Capital Program ,Fire Risk Assessment,HCE18,Capital Contract Payments,5000,16438.97,Nationwide Windows Ltd,100808,17/10/2013,10192785
INSERTED DETAIL,Resources & Corporate Governance ,Domestic Waste Collection,WWC00,Vehicle Repair and Maintenance,0200,-612.00,Ford & Slater,100817,10/10/2013,10192443
INSERTED DETAIL,Resources & Corporate Governance ,Domestic Waste Collection,WWC00,Vehicle Repair and Maintenance,0200,680.00,Ford & Slater,100817,10/10/2013,10192477
INSERTED DETAIL,Resources & Corporate Governance ,Domestic Waste Collection,WWC00,Vehicle Repair and Maintenance,0200,665.13,Ford & Slater,100817,10/10/2013,10192478
INSERTED DETAIL,Resources & Corporate Governance ,Domestic Waste Collection,WWC00,Vehicle Repair and Maintenance,0200,1844.66,Ford & Slater,100817,10/10/2013,10192479
INSERTED DETAIL,,Balance Sheet,BS,Car Leasing Scheme,9244,-724.44,Lex Autolease Ltd,100844,10/10/2013,10192389
INSERTED DETAIL,,Balance Sheet,BS,Car Leasing Scheme,9244,3093.05,Lex Autolease Ltd,100844,10/10/2013,10192400
INSERTED DETAIL,Resources & Corporate Governance ,Town Hall,OFF00,Materials,0303,578.00,Greenham,100890,24/10/2013,10192925
INSERTED DETAIL,Sustainable Environment ,Parks,PKS00,Maintenance of Equipment,0301,566.50,GB Sport & Leisure UK Ltd,100920,03/10/2013,10191951
INSERTED DETAIL,Resources & Corporate Governance ,Corporate Property Management,CPM00,Asset Management Expenses,0448,900.75,Godfrey-Payton Chartered Surveyors,100937,03/10/2013,10191930
INSERTED DETAIL,Resources & Corporate Governance ,Human Resources Centralised Services,RES31,Recruitment Expenses,0012,1330.00,TMP (UK) LTD,100972,10/10/2013,10191994
INSERTED DETAIL,Resources & Corporate Governance ,Human Resources Centralised Services,RES31,Recruitment Expenses,0012,985.00,TMP (UK) LTD,100972,24/10/2013,10192710
INSERTED DETAIL,Resources & Corporate Governance ,Human Resources Centralised Services,RES31,Recruitment Expenses,0012,985.00,TMP (UK) LTD,100972,24/10/2013,10192711
INSERTED DETAIL,Resources & Corporate Governance ,Human Resources Centralised Services,RES31,Recruitment Expenses,0012,1530.00,TMP (UK) LTD,100972,24/10/2013,10192976
INSERTED DETAIL,Resources & Corporate Governance,Corporate Property R&M,CPA01,R&M External Contractors,0100,582.44,ThyssenKrupp Elevator UK,100985,10/10/2013,10192244
INSERTED DETAIL,Resources & Corporate Governance ,Trade Waste Collection,WWC01,Vehicle Repair and Maintenance,0200,850.00,H.L. Smith (Transmissions) Ltd,101096,03/10/2013,10191306
INSERTED DETAIL,Resources & Corporate Governance ,Street Cleansing,WSC00,Materials,0303,807.40,Imperial Polythene Products Limited,101157,10/10/2013,10192249
INSERTED DETAIL,Sustainable Environment,Crematorium,CRM00,Materials,0303,4360.00,James Coles & Sons (Nurseries) Ltd,101165,10/10/2013,10192001
INSERTED DETAIL,Sustainable Environment,Crematorium,CRM00,Materials,0303,1777.00,James Coles & Sons (Nurseries) Ltd,101165,31/10/2013,10193245
INSERTED DETAIL,Resources & Corporate Governance,Housing Maintenance,WHM00,External Contractor & Operator,0742,518.62,Clews Recycling Limited,101213,17/10/2013,10191333
INSERTED DETAIL,Resources & Corporate Governance ,Grounds Maintenance,WGM00,External Contractor & Operator,0742,7484.00,K A Hicks,101216,17/10/2013,10192055
INSERTED DETAIL,,User Balance Sheet Cost Centre,BSU,Section Agreements,9865,2592.00,Long Lawford Parish Council,101228,17/10/2013,10192809
INSERTED DETAIL,Capital Program ,Kitchen Modifications,HIK10,Capital Contract Payments,5000,1357.08,M & J Engineers Ltd,101278,10/10/2013,10192482
INSERTED DETAIL,Resources & Corporate Governance,Housing Maintenance,WHM00,Materials,0303,547.00,Melbros Ltd,101291,03/10/2013,10189527
INSERTED DETAIL,Resources & Corporate Governance,Housing Maintenance,WHM00,Materials,0303,447.00,Melbros Ltd,101291,03/10/2013,10190437
INSERTED DETAIL,Resources & Corporate Governance,Housing Maintenance,WHM00,Materials,0303,497.01,Melbros Ltd,101291,03/10/2013,10190551
INSERTED DETAIL,Resources & Corporate Governance,Housing Maintenance,WHM00,Materials,0303,488.00,Melbros Ltd,101291,03/10/2013,10190552
INSERTED DETAIL,Resources & Corporate Governance,Housing Maintenance,WHM00,Materials,0303,571.94,Melbros Ltd,101291,03/10/2013,10191584
INSERTED DETAIL,Resources & Corporate Governance,Housing Maintenance,WHM00,Materials,0303,1288.77,Melbros Ltd,101291,17/10/2013,10192528
INSERTED DETAIL,Economy Development & Culture,Art Gallery and Museum,AGM00,Subscriptions,0421,615.73,Museums Association,101361,31/10/2013,10193344
INSERTED DETAIL,Resources & Corporate Governance ,Garage Internal,WVR01,Materials,0303,12716.57,Noden Truck Centre Ltd,101368,03/10/2013,10191969
INSERTED DETAIL,Resources & Corporate Governance ,Domestic Waste Collection,WWC00,Vehicle Repair and Maintenance,0200,711.90,Noden Truck Centre Ltd,101368,31/10/2013,10193188
INSERTED DETAIL,Capital Program ,Open Spaces Refurbishment,LEI08,Capital Contract Payments,5000,619.00,Nuneaton Signs Ltd,101371,31/10/2013,10192962
INSERTED DETAIL,Economy Development & Culture,Visitor Centre,VSC00,Events Tickets - Zero Rated,1405,1615.63,National Express Ltd,101392,10/10/2013,10192436
INSERTED DETAIL,Resources & Corporate Governance ,WSU Depot,WDP00,Telephone Expenses,0371,556.70,EE Ltd t/a Orange Personal Communications,101404,03/10/2013,10191760
INSERTED DETAIL,Sustainable Environment,Regulatory Services,REG00,External Contractor & Operator,0742,545.00,Osborne Richardson,101412,10/10/2013,10192309
INSERTED DETAIL,Resources & Corporate Governance,Central Business Support Services,CSS15,External Printing,0352,930.00,Polycopy,101428,03/10/2013,10192192
INSERTED DETAIL,Sustainable Environment,Regulatory Services,REG00,Vehicle Running Costs,0201,440.00,Post Office Ltd,101429,17/10/2013,10192800
INSERTED DETAIL,Resources & Corporate Governance ,Grounds Maintenance,WGM00,Vehicle Running Costs,0201,440.00,Post Office Ltd,101429,17/10/2013,10192800
INSERTED DETAIL,Resources & Corporate Governance ,Street Cleansing,WSC00,Vehicle Running Costs,0201,330.00,Post Office Ltd,101429,17/10/2013,10192800
INSERTED DETAIL,Sustainable Environment ,Parks,PKS00,R&M External Contractors,0100,512.52,PJT Pumping Services,101438,17/10/2013,10192854
INSERTED DETAIL,Sustainable Inclusive Communities,Sewage Disposal Plant,SDP00,R&M External Contractors,0100,520.28,PJT Pumping Services,101438,17/10/2013,10192855
INSERTED DETAIL,Sustainable Environment ,Parks,PKS00,R&M External Contractors,0100,450.00,Post To Post Fencing,101490,31/10/2013,10193059
INSERTED DETAIL,Resources & Corporate Governance,Central Business Support Services,CSS15,Photocopying,0354,3269.18,Xerox (UK) Ltd,101502,10/10/2013,10192360
INSERTED DETAIL,Resources & Corporate Governance,Central Business Support Services,CSS15,Photocopying,0354,580.75,Xerox (UK) Ltd,101502,10/10/2013,10192363
INSERTED DETAIL,Resources & Corporate Governance,Central Business Support Services,CSS15,Photocopying,0354,523.03,Xerox (UK) Ltd,101502,17/10/2013,10192377
INSERTED DETAIL,Capital Program ,Bathroom Modifications,HIS01,Capital Contract Payments,5000,27800.00,Reeds Plumbing & Heating Contractors Ltd,101504,03/10/2013,10191865
INSERTED DETAIL,Capital Program ,Bathroom Modifications,HIS01,Capital Contract Payments,5000,3267.00,Reeds Plumbing & Heating Contractors Ltd,101504,03/10/2013,10191944
INSERTED DETAIL,Capital Program ,Bathroom Modifications,HIS01,Capital Contract Payments,5000,2046.00,Reeds Plumbing & Heating Contractors Ltd,101504,17/10/2013,10192880
INSERTED DETAIL,Capital Program ,Bathroom Modifications,HIS01,Capital Contract Payments,5000,16800.00,Reeds Plumbing & Heating Contractors Ltd,101504,31/10/2013,10193252
INSERTED DETAIL,Economy Development & Culture,Car Parks General,CPK01,Postage & Distribution,0370,16.55,Royal Mail,101554,03/10/2013,10191643
INSERTED DETAIL,Resources & Corporate Governance,Central Business Support Services,CSS15,Postage & Distribution,0370,320.96,Royal Mail,101554,03/10/2013,10191643
INSERTED DETAIL,Resources & Corporate Governance ,Council Tax and NNDR Collection,CTX01,Postage & Distribution,0370,343.95,Royal Mail,101554,03/10/2013,10191643
INSERTED DETAIL,Economy Development & Culture,Decrim. of Car Parking on street parking,DPE02,Postage & Distribution,0370,66.19,Royal Mail,101554,03/10/2013,10191643
INSERTED DETAIL,Sustainable Inclusive Communities,Housing Benefit Administration,HBA00,Postage & Distribution,0370,108.25,Royal Mail,101554,03/10/2013,10191643
INSERTED DETAIL,Housing Revenue Account ,Supervision and Management General,MAN00,Postage & Distribution,0370,18.63,Royal Mail,101554,03/10/2013,10191643
INSERTED DETAIL,Economy Development & Culture,Planning General/Income,PLN00,Postage & Distribution,0370,558.23,Royal Mail,101554,03/10/2013,10191643
INSERTED DETAIL,Economy Development & Culture,Visitor Centre,VSC00,Postage & Distribution,0370,0.47,Royal Mail,101554,03/10/2013,10191643
INSERTED DETAIL,Resources & Corporate Governance ,General Administration,WAD00,Postage & Distribution,0370,12.69,Royal Mail,101554,03/10/2013,10191643
INSERTED DETAIL,Economy Development & Culture,Art Gallery and Museum,AGM00,Postage & Distribution,0370,10.38,Royal Mail,101554,24/10/2013,10192557
INSERTED DETAIL,Economy Development & Culture,Building Control Services,BCS00,Postage & Distribution,0370,0.07,Royal Mail,101554,24/10/2013,10192557
INSERTED DETAIL,Economy Development & Culture,Building Control Services Non-Fee Earning Account,BCS01,Postage & Distribution,0370,0.07,Royal Mail,101554,24/10/2013,10192557
INSERTED DETAIL,Economy Development & Culture,Building Regulation Fee Earning Account,BCS99,Postage & Distribution,0370,1.32,Royal Mail,101554,24/10/2013,10192557
INSERTED DETAIL,Economy Development & Culture,Car Parks General,CPK01,Postage & Distribution,0370,85.63,Royal Mail,101554,24/10/2013,10192557
INSERTED DETAIL,Resources & Corporate Governance,Central Business Support Services,CSS15,Postage & Distribution,0370,477.04,Royal Mail,101554,24/10/2013,10192557
INSERTED DETAIL,Resources & Corporate Governance ,Council Tax and NNDR Collection,CTX01,Postage & Distribution,0370,250.80,Royal Mail,101554,24/10/2013,10192557
INSERTED DETAIL,Economy Development & Culture,Decrim. of Car Parking on street parking,DPE02,Postage & Distribution,0370,342.48,Royal Mail,101554,24/10/2013,10192557
INSERTED DETAIL,Resources & Corporate Governance ,Electoral Registration,ERG00,Postage & Distribution,0370,334.65,Royal Mail,101554,24/10/2013,10192557
INSERTED DETAIL,Sustainable Inclusive Communities,Housing Benefit Administration,HBA00,Postage & Distribution,0370,219.79,Royal Mail,101554,24/10/2013,10192557
INSERTED DETAIL,Housing Revenue Account ,Supervision and Management General,MAN00,Postage & Distribution,0370,75.49,Royal Mail,101554,24/10/2013,10192557
INSERTED DETAIL,Economy Development & Culture,Planning General/Income,PLN00,Postage & Distribution,0370,337.55,Royal Mail,101554,24/10/2013,10192557
INSERTED DETAIL,Resources & Corporate Governance ,General Administration,WAD00,Postage & Distribution,0370,19.53,Royal Mail,101554,24/10/2013,10192557
INSERTED DETAIL,Resources & Corporate Governance ,Electoral Registration,ERG00,Postage & Distribution,0370,3251.56,Royal Mail,101554,31/10/2013,10193199
INSERTED DETAIL,Resources & Corporate Governance ,General Administration,WAD00,Training fees,0011,640.00,Playsafety Ltd,101605,03/10/2013,10191964
INSERTED DETAIL,Resources & Corporate Governance,Corporate Property Central Utilities,CPA02,Water Services,0143,2812.16,Severn Trent Water Ltd,101610,10/10/2013,10192422
INSERTED DETAIL,Capital Program ,Disabled Facilities Grant,REN01,Capital Grants,5014,4550.00,Stannah Stairlifts Ltd,101623,17/10/2013,10192670
INSERTED DETAIL,Resources & Corporate Governance ,Legal Services,DEM20,Ref. Books Journals & Magazines,0353,3919.00,Sweet & Maxwell Limited,101632,24/10/2013,10192354
INSERTED DETAIL,Resources & Corporate Governance ,Legal Services,DEM20,Ref. Books Journals & Magazines,0353,3935.00,Sweet & Maxwell Limited,101632,24/10/2013,10192811
INSERTED DETAIL,Economy Development & Culture,Planning General/Income,PLN00,Ref. Books Journals & Magazines,0353,1232.15,Sweet & Maxwell Limited,101632,17/10/2013,10192858
INSERTED DETAIL,Housing Revenue Account ,Unplanned Maintenance and Repair,UMR00,R&M External Contractors,0100,3445.00,Steve Diston Contract Flooring,101668,17/10/2013,10192550
INSERTED DETAIL,Resources & Corporate Governance,Corporate Property R&M,CPA01,R&M External Contractors,0100,453.00,Secom Plc,101671,10/10/2013,10192429
INSERTED DETAIL,Resources & Corporate Governance,Housing Maintenance,WHM00,Materials,0303,474.73,Travis Perkins Trading Co Ltd,101732,03/10/2013,10187424
INSERTED DETAIL,Resources & Corporate Governance,Housing Maintenance,WHM00,Materials,0303,1169.81,Travis Perkins Trading Co Ltd,101732,03/10/2013,10187431
INSERTED DETAIL,Resources & Corporate Governance,Housing Maintenance,WHM00,Materials,0303,809.36,Travis Perkins Trading Co Ltd,101732,03/10/2013,10187519
INSERTED DETAIL,Resources & Corporate Governance,Housing Maintenance,WHM00,Materials,0303,4941.92,Travis Perkins Trading Co Ltd,101732,03/10/2013,10190370
INSERTED DETAIL,Resources & Corporate Governance,Housing Maintenance,WHM00,Materials,0303,2678.01,Travis Perkins Trading Co Ltd,101732,10/10/2013,10190607
INSERTED DETAIL,Resources & Corporate Governance,Housing Maintenance,WHM00,Materials,0303,3157.89,Travis Perkins Trading Co Ltd,101732,10/10/2013,10190892
INSERTED DETAIL,Resources & Corporate Governance,Housing Maintenance,WHM00,Materials,0303,4505.65,Travis Perkins Trading Co Ltd,101732,24/10/2013,10191240
INSERTED DETAIL,Resources & Corporate Governance,Housing Maintenance,WHM00,Materials,0303,6274.74,Travis Perkins Trading Co Ltd,101732,24/10/2013,10191648
INSERTED DETAIL,Resources & Corporate Governance,Housing Maintenance,WHM00,Materials,0303,5629.85,Travis Perkins Trading Co Ltd,101732,24/10/2013,10191804
INSERTED DETAIL,Resources & Corporate Governance,Housing Maintenance,WHM00,Materials,0303,3802.18,Travis Perkins Trading Co Ltd,101732,24/10/2013,10192350
INSERTED DETAIL,Resources & Corporate Governance,Housing Maintenance,WHM00,Contract Hire,0220,584.20,Travis Perkins Trading Co Ltd,101732,24/10/2013,10192447
INSERTED DETAIL,Resources & Corporate Governance ,Domestic Waste Collection,WWC00,Vehicle Running Costs,0201,1078.91,HI-Q Motorway,101736,17/10/2013,10192281
INSERTED DETAIL,Resources & Corporate Governance ,Domestic Waste Collection,WWC00,Vehicle Running Costs,0201,916.91,HI-Q Motorway,101736,17/10/2013,10192282
INSERTED DETAIL,Resources & Corporate Governance,Housing Maintenance,WHM00,Vehicle Running Costs,0201,57.62,HI-Q Motorway,101736,31/10/2013,10193045
INSERTED DETAIL,Resources & Corporate Governance ,Street Cleansing,WSC00,Vehicle Running Costs,0201,59.89,HI-Q Motorway,101736,31/10/2013,10193045
INSERTED DETAIL,Resources & Corporate Governance ,Domestic Waste Collection,WWC00,Vehicle Running Costs,0201,487.91,HI-Q Motorway,101736,31/10/2013,10193045
INSERTED DETAIL,Resources & Corporate Governance ,Trade Waste Collection,WWC01,Vehicle Running Costs,0201,696.91,HI-Q Motorway,101736,31/10/2013,10193045
INSERTED DETAIL,Resources & Corporate Governance ,Domestic Waste Collection,WWC00,Vehicle Running Costs,0201,1374.82,HI-Q Motorway,101736,31/10/2013,10193046
INSERTED DETAIL,Resources & Corporate Governance ,Domestic Waste Collection,WWC00,Vehicle Running Costs,0201,975.82,HI-Q Motorway,101736,31/10/2013,10193220
INSERTED DETAIL,Resources & Corporate Governance ,Domestic Waste Collection,WWC00,Vehicle Running Costs,0201,712.90,HI-Q Motorway,101736,31/10/2013,10193221
INSERTED DETAIL,Resources & Corporate Governance ,Domestic Waste Collection,WWC00,Vehicle Repair and Maintenance,0200,2349.41,Terberg Matec Uk,101761,03/10/2013,10191515
INSERTED DETAIL,Economy Development & Culture,Planning General/Income,PLN00,External Legal Costs,0741,7744.61,Wragge & Co.,101856,24/10/2013,10192207
INSERTED DETAIL,Resources & Corporate Governance ,Financial Services,RES10,Training fees,0011,1480.00,Warwickshire College,101882,10/10/2013,10191925
INSERTED DETAIL,Resources & Corporate Governance ,Street Cleansing,WSC00,Materials,0303,946.10,Warwickshire County Council,101893,24/10/2013,10189005
INSERTED DETAIL,Resources & Corporate Governance ,Trade Waste Collection,WWC01,Removal of Waste - WCC,0711,109775.00,Warwickshire County Council,101893,24/10/2013,10192391
INSERTED DETAIL,Resources & Corporate Governance ,Land Charges,LCH00,Payments to Other Local Authorities,0710,8474.90,Warwickshire County Council,101893,24/10/2013,10193008
INSERTED DETAIL,CSW Superfast Broadband,CSW Superfast Broadband,RBB00,Capital Contract Payments,5000,1601.46,Warwickshire County Council,101893,24/10/2013,10193122
INSERTED DETAIL,,Balance Sheet,BS,Car Leasing Scheme,9244,961.10,REDACTED PERSONAL DATA,101905,28/10/2013,10192982
INSERTED DETAIL,Capital Program ,Electric to Gas Conversions,HIM04,Capital Contract Payments,5000,8659.14,Adroit Services Ltd,101939,03/10/2013,10191795
INSERTED DETAIL,Housing Revenue Account ,Unplanned Maintenance and Repair,UMR00,R&M External Contractors,0100,476.05,Adroit Services Ltd,101939,10/10/2013,10192218
INSERTED DETAIL,Housing Revenue Account ,Repairs and Maintenance - Void works,UMR09,R&M External Contractors,0100,177.50,Adroit Services Ltd,101939,10/10/2013,10192218
INSERTED DETAIL,Capital Program ,Electric to Gas Conversions,HIM04,Capital Contract Payments,5000,466.00,Adroit Services Ltd,101939,10/10/2013,10192218
INSERTED DETAIL,Capital Program ,Electric to Gas Conversions,HIM04,Capital Contract Payments,5000,8659.14,Adroit Services Ltd,101939,10/10/2013,10192348
INSERTED DETAIL,Capital Program ,Electric to Gas Conversions,HIM04,Capital Contract Payments,5000,8222.76,Adroit Services Ltd,101939,17/10/2013,10192687
INSERTED DETAIL,Housing Revenue Account ,Unplanned Maintenance and Repair,UMR00,R&M External Contractors,0100,1195.70,Adroit Services Ltd,101939,17/10/2013,10192877
INSERTED DETAIL,Housing Revenue Account ,Unplanned Maintenance and Repair,UMR00,R&M External Contractors,0100,870.79,Adroit Services Ltd,101939,17/10/2013,10192878
INSERTED DETAIL,Capital Program ,Electric to Gas Conversions,HIM04,Capital Contract Payments,5000,511.84,Adroit Services Ltd,101939,17/10/2013,10192878
INSERTED DETAIL,Capital Program ,Electric to Gas Conversions,HIM04,Capital Contract Payments,5000,5336.38,Adroit Services Ltd,101939,24/10/2013,10192998
INSERTED DETAIL,Capital Program ,Electric to Gas Conversions,HIM04,Capital Contract Payments,5000,8659.14,Adroit Services Ltd,101939,31/10/2013,10193254
INSERTED DETAIL,Capital Program ,Open Spaces Refurbishment,LEI08,Capital Contract Payments,5000,4320.00,Furnitubes International Ltd,102084,24/10/2013,10192948
INSERTED DETAIL,Resources & Corporate Governance ,Change Team,BTR50,Payments to Other Local Authorities,0710,9783.25,Nuneaton & Bedworth Borough Council,108060,24/10/2013,10192944
INSERTED DETAIL,Resources & Corporate Governance ,Human Resources,RES30,Payments to Other Local Authorities,0710,8402.02,Nuneaton & Bedworth Borough Council,108060,31/10/2013,10192955
INSERTED DETAIL,Resources & Corporate Governance ,Central Telephone Service,TEL00,Telephone Expenses,0371,976.92,British Telecommunications PLC,108425,24/10/2013,10193038
INSERTED DETAIL,Capital Program ,Crematorium Project,BUR04,Capital Contract Payments,5000,361844.19,Daventry District Council,108940,10/10/2013,10191958
INSERTED DETAIL,Capital Program ,Crematorium Project,BUR04,Miscellaneous Capital Expenditure,5020,255294.20,Daventry District Council,108940,10/10/2013,10191958
INSERTED DETAIL,Economy Development & Culture,Planning General/Income,PLN00,External Legal Costs,0741,800.00,SATNAM SINGH CHOONGH,109271,24/10/2013,10192561
INSERTED DETAIL,Resources & Corporate Governance ,General Administration,WAD00,Other Agencies,0734,3513.01,Environment Agency,109492,03/10/2013,10191523
INSERTED DETAIL,Sustainable Environment ,Parks,PKS00,R&M External Contractors,0100,576.25,1ST CLASS HYGIENE LTD,110029,17/10/2013,10192543
INSERTED DETAIL,Sustainable Environment ,Parks,PKS00,External Contractor & Operator,0742,764.00,Boughton Loam Limited,110360,10/10/2013,10192278
INSERTED DETAIL,Resources & Corporate Governance ,Garage Internal,WVR01,Materials,0303,33195.00,Watson Petroleum,110361,03/10/2013,10192009
INSERTED DETAIL,Resources & Corporate Governance ,Garage Internal,WVR01,Materials,0303,24881.92,Watson Petroleum,110361,31/10/2013,10193222
INSERTED DETAIL,Housing Revenue Account ,Unplanned Maintenance and Repair,UMR00,R&M External Contractors,0100,846.50,Dampco,111839,17/10/2013,10190588
INSERTED DETAIL,Housing Revenue Account ,Unplanned Maintenance and Repair,UMR00,R&M External Contractors,0100,768.24,Dampco,111839,17/10/2013,10192574
INSERTED DETAIL,Housing Revenue Account ,Unplanned Maintenance and Repair,UMR00,R&M External Contractors,0100,842.00,Dampco,111839,24/10/2013,10192887
INSERTED DETAIL,Resources & Corporate Governance ,Council Tax and NNDR Collection,CTX01,Other,0763,5430.49,Experian Ltd,112302,03/10/2013,10191816
INSERTED DETAIL,Resources & Corporate Governance ,Grounds Maintenance,WGM00,External Contractor & Operator,0742,4544.89,Mark Smithers,112612,31/10/2013,10192769
INSERTED DETAIL,Economy Development & Culture,Visitor Centre,VSC00,Maintenance of Equipment,0301,600.00,Business Reply Ltd,112717,10/10/2013,10192409
INSERTED DETAIL,Resources & Corporate Governance ,Customer and Information Strategy,CIS10,Software Maintenance,0374,945.00,Civica UK Ltd,112724,24/10/2013,10192979
INSERTED DETAIL,Resources & Corporate Governance ,Domestic Waste Collection,WWC00,Agency Staff,0003,598.77,Extra Personnel Limited,112996,24/10/2013,10190757
INSERTED DETAIL,Resources & Corporate Governance ,Domestic Waste Collection,WWC00,Agency Staff,0003,514.80,Extra Personnel Limited,112996,10/10/2013,10191453
INSERTED DETAIL,Resources & Corporate Governance ,Domestic Waste Collection,WWC00,Agency Staff,0003,514.80,Extra Personnel Limited,112996,24/10/2013,10191999
INSERTED DETAIL,Resources & Corporate Governance ,Domestic Waste Collection,WWC00,Agency Staff,0003,508.37,Extra Personnel Limited,112996,24/10/2013,10192701
INSERTED DETAIL,Housing Revenue Account ,Unplanned Maintenance and Repair,UMR00,R&M External Contractors,0100,1291.30,Temple Lifts Ltd,114738,17/10/2013,10192240
INSERTED DETAIL,Sustainable Environment ,Parks,PKS00,Purchases for Resale,0305,678.00,Streetmaster (South Wales) Ltd,114898,31/10/2013,10192964
INSERTED DETAIL,Sustainable Inclusive Communities,Housing Options Team,HOT00,Rents,0140,443.38,Diamond House Hotel,115070,24/10/2013,10191387
INSERTED DETAIL,Sustainable Inclusive Communities,Housing Options Team,HOT00,Rents,0140,443.38,Diamond House Hotel,115070,24/10/2013,10192051
INSERTED DETAIL,Sustainable Inclusive Communities,Housing Options Team,HOT00,Rents,0140,525.00,Diamond House Hotel,115070,10/10/2013,10192052
INSERTED DETAIL,Resources & Corporate Governance,Housing Maintenance,WHM00,Training fees,0011,920.00,OSTAS,117097,31/10/2013,10192717
INSERTED DETAIL,Economy Development & Culture,Street Furniture,HIG01,External Contractor & Operator,0742,675.00,Lushglen,117749,03/10/2013,10191992
INSERTED DETAIL,Sustainable Environment ,Cemeteries General,CEM00,External Contractor & Operator,0742,550.00,Lushglen,117749,17/10/2013,10192788
INSERTED DETAIL,Sustainable Environment ,Parks,PKS00,External Contractor & Operator,0742,87.50,Lushglen,117749,17/10/2013,10192788
INSERTED DETAIL,Sustainable Environment ,Parks,PKS00,External Contractor & Operator,0742,510.00,Lushglen,117749,17/10/2013,10192789
INSERTED DETAIL,Resources & Corporate Governance,Corporate Property Central Utilities,CPA02,Electricity,0130,191.99,Southern Electric,118976,17/10/2013,10191432
INSERTED DETAIL,Resources & Corporate Governance ,WSU Depot,WDP00,Electricity,0130,287.72,Southern Electric,118976,17/10/2013,10191432
INSERTED DETAIL,Resources & Corporate Governance,Corporate Property Central Utilities,CPA02,Electricity,0130,3365.61,Southern Electric,118976,24/10/2013,10192661
INSERTED DETAIL,Resources & Corporate Governance ,WSU Depot,WDP00,Electricity,0130,252.70,Southern Electric,118976,24/10/2013,10192661
INSERTED DETAIL,Resources & Corporate Governance,Corporate Property Central Utilities,CPA02,Electricity,0130,8574.56,Southern Electric,118976,24/10/2013,10192680
INSERTED DETAIL,Sustainable Environment ,Cemeteries General,CEM00,External Contractor & Operator,0742,648.00,MPCS,119391,03/10/2013,10192000
INSERTED DETAIL,Housing Revenue Account ,Unplanned Maintenance and Repair,UMR00,R&M External Contractors,0100,829.00,Pro-Tec Security Systems,119999,03/10/2013,10191738
INSERTED DETAIL,Resources & Corporate Governance ,Toilet Cleaning,WBC01,Agency Staff,0003,299.10,G-Staff Ltd,120173,03/10/2013,10191759
INSERTED DETAIL,Resources & Corporate Governance ,Street Cleansing,WSC00,Agency Staff,0003,149.55,G-Staff Ltd,120173,03/10/2013,10191759
INSERTED DETAIL,Resources & Corporate Governance ,Domestic Waste Collection,WWC00,Agency Staff,0003,990.78,G-Staff Ltd,120173,03/10/2013,10191759
INSERTED DETAIL,Resources & Corporate Governance ,Trade Waste Collection,WWC01,Agency Staff,0003,611.33,G-Staff Ltd,120173,03/10/2013,10191759
INSERTED DETAIL,Resources & Corporate Governance ,Toilet Cleaning,WBC01,Agency Staff,0003,99.70,G-Staff Ltd,120173,10/10/2013,10191953
INSERTED DETAIL,Resources & Corporate Governance ,Domestic Waste Collection,WWC00,Agency Staff,0003,1332.04,G-Staff Ltd,120173,10/10/2013,10191953
INSERTED DETAIL,Resources & Corporate Governance ,Trade Waste Collection,WWC01,Agency Staff,0003,94.72,G-Staff Ltd,120173,10/10/2013,10191953
INSERTED DETAIL,Resources & Corporate Governance ,Toilet Cleaning,WBC01,Agency Staff,0003,655.86,G-Staff Ltd,120173,24/10/2013,10192501
INSERTED DETAIL,Resources & Corporate Governance ,Domestic Waste Collection,WWC00,Agency Staff,0003,1510.41,G-Staff Ltd,120173,24/10/2013,10192501
INSERTED DETAIL,Resources & Corporate Governance ,Trade Waste Collection,WWC01,Agency Staff,0003,102.96,G-Staff Ltd,120173,24/10/2013,10192501
INSERTED DETAIL,Resources & Corporate Governance ,Street Cleansing,WSC00,Agency Staff,0003,493.09,G-Staff Ltd,120173,24/10/2013,10192609
INSERTED DETAIL,Resources & Corporate Governance ,Domestic Waste Collection,WWC00,Agency Staff,0003,746.80,G-Staff Ltd,120173,24/10/2013,10192609
INSERTED DETAIL,Resources & Corporate Governance ,Trade Waste Collection,WWC01,Agency Staff,0003,122.27,G-Staff Ltd,120173,24/10/2013,10192609
INSERTED DETAIL,Resources & Corporate Governance ,Toilet Cleaning,WBC01,Agency Staff,0003,242.10,G-Staff Ltd,120173,24/10/2013,10192966
INSERTED DETAIL,Resources & Corporate Governance ,Street Cleansing,WSC00,Agency Staff,0003,361.20,G-Staff Ltd,120173,24/10/2013,10192966
INSERTED DETAIL,Resources & Corporate Governance ,Domestic Waste Collection,WWC00,Agency Staff,0003,1087.70,G-Staff Ltd,120173,24/10/2013,10192966
INSERTED DETAIL,Resources & Corporate Governance ,Trade Waste Collection,WWC01,Agency Staff,0003,148.01,G-Staff Ltd,120173,24/10/2013,10192966
INSERTED DETAIL,Resources & Corporate Governance ,Street Cleansing,WSC00,Agency Staff,0003,149.55,G-Staff Ltd,120173,31/10/2013,10193214
INSERTED DETAIL,Resources & Corporate Governance ,Domestic Waste Collection,WWC00,Agency Staff,0003,566.21,G-Staff Ltd,120173,31/10/2013,10193214
INSERTED DETAIL,Resources & Corporate Governance ,Maintenance of Customer Services Systems,CIS21,Software Maintenance,0374,3800.00,Northgate Information Solutions UK Ltd,121606,10/10/2013,10192562
INSERTED DETAIL,Housing Revenue Account ,Supervision and Management General,MAN00,Publicity & Marketing,0377,1225.00,Janus Kreative,121748,03/10/2013,10192193
INSERTED DETAIL,Resources & Corporate Governance ,Change Team,BTR50,Software/Equipment Licences,0379,500.00,Covalent Software Limited,122520,03/10/2013,10191822
INSERTED DETAIL,Sustainable Inclusive Communities,Housing Options Team,HOT00,Training fees,0011,700.00,HQN Limited,122890,24/10/2013,10192744
INSERTED DETAIL,Housing Revenue Account ,Supervision and Management General,MAN00,Subscriptions,0421,720.00,HQN Limited,122890,24/10/2013,10193029
INSERTED DETAIL,Housing Revenue Account ,Maintenance of Open Spaces,MOS00,External Contractor & Operator,0742,396.85,Brinklow Quarry,122921,24/10/2013,10192973
INSERTED DETAIL,Resources & Corporate Governance,Housing Maintenance,WHM00,External Contractor & Operator,0742,343.58,Brinklow Quarry,122921,24/10/2013,10192973
INSERTED DETAIL,Sustainable Environment ,Parks,PKS00,External Contractor & Operator,0742,110925.17,Proludic,123148,17/10/2013,10192724
INSERTED DETAIL,Resources & Corporate Governance ,Customer and Information Strategy,CIS10,Hardware Maintenance,0376,2592.93,Cable & Wireless/T/A Vodafone,123224,10/10/2013,10192339
INSERTED DETAIL,Resources & Corporate Governance ,Central Telephone Service,TEL00,Telephone Expenses,0371,1205.90,Cable & Wireless/T/A Vodafone,123224,10/10/2013,10192541
INSERTED DETAIL,Sustainable Environment ,Parks,PKS00,External Contractor & Operator,0742,937.50,Rigby Taylor Ltd,123342,31/10/2013,10192618
INSERTED DETAIL,Economy Development & Culture,Visitor Centre,VSC00,Purchases for Resale,0305,628.00,Krishna Enterprises Ltd,123590,31/10/2013,10193311
INSERTED DETAIL,Resources & Corporate Governance ,Garage Internal,WVR01,Materials,0303,493.71,Shell U.K. Oil Products Limited,125672,10/10/2013,10192306
INSERTED DETAIL,Sustainable Environment ,Parks,PKS00,External Contractor & Operator,0742,775.00,The Garden Centre Group,125739,17/10/2013,10192524
INSERTED DETAIL,Sustainable Environment,Regulatory Services,REG00,Software/Equipment Licences,0379,1061.47,Airwave Solutions Limited,126436,17/10/2013,10192886
INSERTED DETAIL,Capital Program ,Private Sector Renovation Loans,REN00,Capital Grants,5014,2329.09,George and Company (Surveyors) Ltd,126668,24/10/2013,10193031
INSERTED DETAIL,Resources & Corporate Governance,Housing Maintenance,WHM00,External Contractor & Operator,0742,843.50,M P Hudson & Son,129334,03/10/2013,10191672
INSERTED DETAIL,Resources & Corporate Governance,Housing Maintenance,WHM00,External Contractor & Operator,0742,705.00,M P Hudson & Son,129334,10/10/2013,10192185
INSERTED DETAIL,Resources & Corporate Governance,Housing Maintenance,WHM00,External Contractor & Operator,0742,782.50,M P Hudson & Son,129334,10/10/2013,10192459
INSERTED DETAIL,Resources & Corporate Governance,Housing Maintenance,WHM00,External Contractor & Operator,0742,712.50,M P Hudson & Son,129334,17/10/2013,10192874
INSERTED DETAIL,Resources & Corporate Governance,Housing Maintenance,WHM00,External Contractor & Operator,0742,554.25,M P Hudson & Son,129334,24/10/2013,10193102
INSERTED DETAIL,Resources & Corporate Governance ,IT Procurement,CMP00,IT Capital Expenditure,5025,417.50,Corporate Direct (Europe) Ltd,129644,03/10/2013,10191811
INSERTED DETAIL,Sustainable Inclusive Communities,CL Grants,CGS00,Grants To Voluntary Organisations,0720,1500.00,West Indian Association,129989,17/10/2013,10192802
INSERTED DETAIL,Sustainable Environment ,Parks,PKS00,Maintenance of Equipment,0301,933.00,I D Welding & Fabrications,131407,31/10/2013,10192830
INSERTED DETAIL,Sustainable Environment ,Parks,PKS00,External Contractor & Operator,0742,594.00,I D Welding & Fabrications,131407,31/10/2013,10192831
INSERTED DETAIL,Economy Development & Culture,Car Parks General,CPK01,Cash Collection,0744,986.40,Jade Security Services Ltd,131711,10/10/2013,10190996
INSERTED DETAIL,Economy Development & Culture,Decrim. of Car Parking on street parking,DPE02,Cash Collection,0744,734.32,Jade Security Services Ltd,131711,10/10/2013,10191000
INSERTED DETAIL,Economy Development & Culture,Car Parks General,CPK01,Cash Collection,0744,1041.20,Jade Security Services Ltd,131711,10/10/2013,10192500
INSERTED DETAIL,Economy Development & Culture,Decrim. of Car Parking on street parking,DPE02,Cash Collection,0744,591.84,Jade Security Services Ltd,131711,10/10/2013,10192502
INSERTED DETAIL,Capital Program ,Disabled Facilities Grant,REN01,Capital Grants,5014,6663.00,D K Builders,131946,17/10/2013,10192191
INSERTED DETAIL,Capital Program ,Disabled Facilities Grant,REN01,Capital Grants,5014,4534.32,D K Builders,131946,17/10/2013,10192445
INSERTED DETAIL,Economy Development & Culture,Economic Development General,ECD00,Consultancy Costs,0740,2867.39,Valuation Office Agency,132903,24/10/2013,10193057
INSERTED DETAIL,Economy Development & Culture,Car Parks General,CPK01,Personal Protective Clothing,0340,94.10,Keltic Ltd,133160,31/10/2013,10193342
INSERTED DETAIL,Economy Development & Culture,Decrim. of Car Parking on street parking,DPE02,Personal Protective Clothing,0340,376.40,Keltic Ltd,133160,31/10/2013,10193342
INSERTED DETAIL,Economy Development & Culture,Town Centre CCTV and Management,TVM00,Other Agencies,0734,20115.98,Rugby First Ltd - BID,133176,17/10/2013,10192674
INSERTED DETAIL,Resources & Corporate Governance ,Highways,WHG00,Materials,0303,983.03,Breedon Aggregates England Limited,133309,10/10/2013,10191862
INSERTED DETAIL,Resources & Corporate Governance ,Highways,WHG00,Materials,0303,2489.10,Breedon Aggregates England Limited,133309,10/10/2013,10192279
INSERTED DETAIL,Resources & Corporate Governance,Housing Maintenance,WHM00,External Contractor & Operator,0742,843.59,Homecare Decorating,133884,17/10/2013,10191812
INSERTED DETAIL,Resources & Corporate Governance,Corporate Property R&M,CPA01,R&M External Contractors,0100,742.27,Sunfish Services Ltd,133886,03/10/2013,10191678
INSERTED DETAIL,Resources & Corporate Governance,Corporate Property R&M,CPA01,R&M External Contractors,0100,949.00,Sunfish Services Ltd,133886,03/10/2013,10191821
INSERTED DETAIL,Capital Program ,Fire Risk Assessment,HCE18,Capital Contract Payments,5000,2954.87,Sunfish Services Ltd,133886,17/10/2013,10192672
INSERTED DETAIL,Resources & Corporate Governance ,Human Resources Centralised Services,RES31,Eye Tests & Glasses Contributions,0015,850.00,Specsavers Optical Superstores,134897,10/10/2013,10192305
INSERTED DETAIL,Resources & Corporate Governance ,Garage Internal,WVR01,Materials,0303,957.20,Brenntag UK Limited,135098,10/10/2013,10191483
INSERTED DETAIL,Capital Program ,Bathroom Modifications,HIS01,Capital Contract Payments,5000,457.50,North Yorkshire Mobility and Safety,135222,31/10/2013,10193357
INSERTED DETAIL,Resources & Corporate Governance ,Human Resources Centralised Services,RES31,Training fees,0011,1590.00,Staffordshire University,135454,31/10/2013,10193365
INSERTED DETAIL,Housing Revenue Account ,Avon Court AP,AGP02,Electricity,0130,406.21,Southern Electric,135653,17/10/2013,10192791
INSERTED DETAIL,Housing Revenue Account ,Dickinson Court AP,AGP03,Electricity,0130,602.15,Southern Electric,135653,17/10/2013,10192791
INSERTED DETAIL,Housing Revenue Account ,Duffy Place AP,AGP04,Electricity,0130,470.42,Southern Electric,135653,17/10/2013,10192791
INSERTED DETAIL,Housing Revenue Account ,Frederick Press Way AP,AGP06,Electricity,0130,1015.35,Southern Electric,135653,17/10/2013,10192791
INSERTED DETAIL,Housing Revenue Account ,Mercer Court AP,AGP09,Electricity,0130,375.21,Southern Electric,135653,17/10/2013,10192791
INSERTED DETAIL,Housing Revenue Account ,Pettiver Crescent I AP,AGP10,Electricity,0130,787.52,Southern Electric,135653,17/10/2013,10192791
INSERTED DETAIL,Housing Revenue Account ,Sun Street/Windsor Street AP,AGP14,Electricity,0130,446.26,Southern Electric,135653,17/10/2013,10192791
INSERTED DETAIL,Housing Revenue Account ,Lesley Souter House AP,AGP16,Electricity,0130,1297.18,Southern Electric,135653,17/10/2013,10192791
INSERTED DETAIL,Housing Revenue Account ,Edward Court AP,AGP19,Electricity,0130,705.61,Southern Electric,135653,17/10/2013,10192791
INSERTED DETAIL,Housing Revenue Account ,Albert Square AP,AGP20,Electricity,0130,-61.47,Southern Electric,135653,17/10/2013,10192791
INSERTED DETAIL,Housing Revenue Account ,Clare Court Site,AGP27,Electricity,0130,52.96,Southern Electric,135653,17/10/2013,10192791
INSERTED DETAIL,Housing Revenue Account ,Alexandra/James Court AP,AGP30,Electricity,0130,810.65,Southern Electric,135653,17/10/2013,10192791
INSERTED DETAIL,Housing Revenue Account ,Clifton Road AP,AGP41,Electricity,0130,54.59,Southern Electric,135653,17/10/2013,10192791
INSERTED DETAIL,Housing Revenue Account ,Featherbed Lane I AP,AGP45,Electricity,0130,365.88,Southern Electric,135653,17/10/2013,10192791
INSERTED DETAIL,Housing Revenue Account ,Fox Close AP,AGP47,Electricity,0130,8.29,Southern Electric,135653,17/10/2013,10192791
INSERTED DETAIL,Housing Revenue Account ,Jackson Road I AP,AGP53,Electricity,0130,65.69,Southern Electric,135653,17/10/2013,10192791
INSERTED DETAIL,Housing Revenue Account ,Lever Road I AP,AGP57,Electricity,0130,608.47,Southern Electric,135653,17/10/2013,10192791
INSERTED DETAIL,Housing Revenue Account ,The Kent AP,AGP67,Electricity,0130,98.26,Southern Electric,135653,17/10/2013,10192791
INSERTED DETAIL,Housing Revenue Account ,Victoria Street/Lawford Road AP,AGP68,Electricity,0130,34.60,Southern Electric,135653,17/10/2013,10192791
INSERTED DETAIL,Housing Revenue Account ,Parkfield Road/Lea Crescent AP,AGP71,Electricity,0130,73.06,Southern Electric,135653,17/10/2013,10192791
INSERTED DETAIL,Housing Revenue Account ,Pennington Street/Round Street AP,AGP72,Electricity,0130,389.54,Southern Electric,135653,17/10/2013,10192791
INSERTED DETAIL,Housing Revenue Account ,Control Centre CCTV,CCE01,Electricity,0130,1370.95,Southern Electric,135653,17/10/2013,10192791
INSERTED DETAIL,Housing Revenue Account ,Supervision and Management General,MAN00,Electricity,0130,109.43,Southern Electric,135653,17/10/2013,10192791
INSERTED DETAIL,Housing Revenue Account ,Multi-Storey Flats,MSF00,Electricity,0130,7194.35,Southern Electric,135653,17/10/2013,10192791
INSERTED DETAIL,Resources & Corporate Governance ,Council Tax and NNDR Collection,CTX01,External Contractor & Operator,0742,665.00,Summers Nigh Law,136330,31/10/2013,10193264
INSERTED DETAIL,Sustainable Environment ,Crime and Disorder Activities,CAD00,Other Miscellaneous Expenses,0444,556.22,Solon Security Ltd,137493,03/10/2013,10191729
INSERTED DETAIL,Resources & Corporate Governance ,General Financial Services,GFS00,Other Miscellaneous Expenses,0444,647.52,Motor Accident Protection Services Ltd,137571,17/10/2013,10192703
INSERTED DETAIL,Resources & Corporate Governance ,Street Cleansing,WSC00,Materials,0303,436.00,Danline International Ltd,137588,03/10/2013,10191856
INSERTED DETAIL,Housing Revenue Account ,Asbestos Surveys,UMR05,R&M External Contractors,0100,1820.00,Rider Levett Bucknall UK Ltd,139918,10/10/2013,10192406
INSERTED DETAIL,Sustainable Environment ,Parks,PKS00,R&M External Contractors,0100,7650.00,D J Whitlock Plant Hire,140156,31/10/2013,10192606
INSERTED DETAIL,Resources & Corporate Governance ,Grounds Maintenance,WGM00,External Contractor & Operator,0742,1040.00,D J Whitlock Plant Hire,140156,31/10/2013,10193009
INSERTED DETAIL,Resources & Corporate Governance ,Grounds Maintenance,WGM00,External Contractor & Operator,0742,1250.00,D J Whitlock Plant Hire,140156,31/10/2013,10193098
INSERTED DETAIL,Resources & Corporate Governance ,Grounds Maintenance,WGM00,External Contractor & Operator,0742,1250.00,D J Whitlock Plant Hire,140156,31/10/2013,10193099
INSERTED DETAIL,Resources & Corporate Governance ,Grounds Maintenance,WGM00,External Contractor & Operator,0742,1250.00,D J Whitlock Plant Hire,140156,31/10/2013,10193100
INSERTED DETAIL,Resources & Corporate Governance ,Domestic Waste Collection,WWC00,Vehicle Repair and Maintenance,0200,716.57,Midlands Truck & Van Ltd,140322,31/10/2013,10192950
INSERTED DETAIL,Resources & Corporate Governance ,Domestic Waste Collection,WWC00,Vehicle Repair and Maintenance,0200,389.99,Midlands Truck & Van Ltd,140322,31/10/2013,10192952
INSERTED DETAIL,Resources & Corporate Governance ,Trade Waste Collection,WWC01,Vehicle Repair and Maintenance,0200,137.51,Midlands Truck & Van Ltd,140322,31/10/2013,10192952
INSERTED DETAIL,Sustainable Environment ,Parks,PKS00,External Contractor & Operator,0742,528.00,StoneWall Security Ltd,140775,10/10/2013,10192387
INSERTED DETAIL,Sustainable Environment ,Britain In Bloom,PKS09,External Contractor & Operator,0742,1612.50,Christine Walkden,141172,03/10/2013,10191924
INSERTED DETAIL,Resources & Corporate Governance ,Maintenance of Customer Services Systems,CIS21,Software Maintenance,0374,3000.00,Access Intelligence Media & Comm Ltd,141464,10/10/2013,10192523
INSERTED DETAIL,Resources & Corporate Governance ,Customer and Information Strategy,CIS10,Telephone Expenses,0371,750.62,Zen Internet Ltd,141612,24/10/2013,10192996
INSERTED DETAIL,Resources & Corporate Governance ,Council Tax and NNDR Collection,CTX01,Telephone Expenses,0371,21.27,Zen Internet Ltd,141612,24/10/2013,10192996
INSERTED DETAIL,Economy Development & Culture,Grants and Subscriptions,LGS00,Grants To Voluntary Organisations,0720,500.00,Coventry & Warwickshire YMCA,142364,24/10/2013,10192990
INSERTED DETAIL,Resources & Corporate Governance,Corporate Property R&M,CPA01,R&M External Contractors,0100,2467.20,Healthmatic Limited,143256,03/10/2013,10191922
INSERTED DETAIL,Resources & Corporate Governance ,Electoral Registration,ERG00,New Equipment,0300,9400.19,Xpress Software Solutions Ltd,143411,10/10/2013,10191805
INSERTED DETAIL,Resources & Corporate Governance ,Electoral Registration,ERG00,Software Purchase,0373,1500.00,Xpress Software Solutions Ltd,143411,31/10/2013,10192921
INSERTED DETAIL,Sustainable Environment ,Parks,PKS00,R&M External Contractors,0100,1005.00,Fountains Direct Limited,144391,24/10/2013,10193081
INSERTED DETAIL,Economy Development & Culture,Car Parks General,CPK01,Other Agencies,0734,360.96,PATROL,144963,31/10/2013,10193239
INSERTED DETAIL,Economy Development & Culture,Decrim. of Car Parking on street parking,DPE02,Other Agencies,0734,1443.84,PATROL,144963,31/10/2013,10193239
INSERTED DETAIL,Housing Revenue Account ,Control Centre CCTV,CCE01,External Contractor & Operator,0742,15574.92,Securitas Security Personnel Ltd,145079,03/10/2013,10191926
INSERTED DETAIL,Housing Revenue Account ,Property Maintenance,MAN23,Agency Staff,0003,420.00,James Andrews Recruitment Solutions Ltd,145100,10/10/2013,10192341
INSERTED DETAIL,Housing Revenue Account ,Property Maintenance,MAN23,Agency Staff,0003,928.00,James Andrews Recruitment Solutions Ltd,145100,10/10/2013,10192343
INSERTED DETAIL,Housing Revenue Account ,Property Maintenance,MAN23,Agency Staff,0003,435.00,James Andrews Recruitment Solutions Ltd,145100,17/10/2013,10192731
INSERTED DETAIL,Housing Revenue Account ,Property Maintenance,MAN23,Agency Staff,0003,1189.00,James Andrews Recruitment Solutions Ltd,145100,17/10/2013,10192732
INSERTED DETAIL,Housing Revenue Account ,Property Maintenance,MAN23,Agency Staff,0003,480.00,James Andrews Recruitment Solutions Ltd,145100,17/10/2013,10192733
INSERTED DETAIL,Housing Revenue Account ,Property Maintenance,MAN23,Agency Staff,0003,1218.00,James Andrews Recruitment Solutions Ltd,145100,17/10/2013,10192734
INSERTED DETAIL,Housing Revenue Account ,Property Maintenance,MAN23,Agency Staff,0003,465.00,James Andrews Recruitment Solutions Ltd,145100,24/10/2013,10192895
INSERTED DETAIL,Housing Revenue Account ,Property Maintenance,MAN23,Agency Staff,0003,450.00,James Andrews Recruitment Solutions Ltd,145100,24/10/2013,10192896
INSERTED DETAIL,Housing Revenue Account ,Property Maintenance,MAN23,Agency Staff,0003,450.00,James Andrews Recruitment Solutions Ltd,145100,24/10/2013,10192933
INSERTED DETAIL,Housing Revenue Account ,Property Maintenance,MAN23,Agency Staff,0003,675.00,James Andrews Recruitment Solutions Ltd,145100,24/10/2013,10192934
INSERTED DETAIL,Resources & Corporate Governance ,Customer and Information Strategy,CIS10,Training fees,0011,965.00,QA Limited,145203,10/10/2013,10190789
INSERTED DETAIL,Resources & Corporate Governance ,General Administration,WAD00,Agency Staff,0003,395.63,Blue Arrow Limited,145492,31/10/2013,10190409
INSERTED DETAIL,Resources & Corporate Governance ,Grounds Maintenance,WGM00,Agency Staff,0003,322.00,Blue Arrow Limited,145492,31/10/2013,10190409
INSERTED DETAIL,Resources & Corporate Governance,Housing Maintenance,WHM00,Agency Staff,0003,1265.03,Blue Arrow Limited,145492,31/10/2013,10190409
INSERTED DETAIL,Resources & Corporate Governance ,Street Cleansing,WSC00,Agency Staff,0003,1210.93,Blue Arrow Limited,145492,31/10/2013,10190409
INSERTED DETAIL,Resources & Corporate Governance ,Domestic Waste Collection,WWC00,Agency Staff,0003,800.62,Blue Arrow Limited,145492,31/10/2013,10190409
INSERTED DETAIL,Resources & Corporate Governance ,General Administration,WAD00,Agency Staff,0003,395.63,Blue Arrow Limited,145492,31/10/2013,10190878
INSERTED DETAIL,Resources & Corporate Governance ,Grounds Maintenance,WGM00,Agency Staff,0003,257.60,Blue Arrow Limited,145492,31/10/2013,10190878
INSERTED DETAIL,Resources & Corporate Governance,Housing Maintenance,WHM00,Agency Staff,0003,888.18,Blue Arrow Limited,145492,31/10/2013,10190878
INSERTED DETAIL,Resources & Corporate Governance ,Street Cleansing,WSC00,Agency Staff,0003,1216.15,Blue Arrow Limited,145492,31/10/2013,10190878
INSERTED DETAIL,Resources & Corporate Governance ,Domestic Waste Collection,WWC00,Agency Staff,0003,852.36,Blue Arrow Limited,145492,31/10/2013,10190878
INSERTED DETAIL,Resources & Corporate Governance ,Trade Waste Collection,WWC01,Agency Staff,0003,179.37,Blue Arrow Limited,145492,31/10/2013,10190878
INSERTED DETAIL,Resources & Corporate Governance ,General Administration,WAD00,Agency Staff,0003,395.63,Blue Arrow Limited,145492,03/10/2013,10191959
INSERTED DETAIL,Resources & Corporate Governance ,Grounds Maintenance,WGM00,Agency Staff,0003,315.96,Blue Arrow Limited,145492,03/10/2013,10191959
INSERTED DETAIL,Resources & Corporate Governance,Housing Maintenance,WHM00,Agency Staff,0003,1489.25,Blue Arrow Limited,145492,03/10/2013,10191959
INSERTED DETAIL,Resources & Corporate Governance ,Street Cleansing,WSC00,Agency Staff,0003,1035.03,Blue Arrow Limited,145492,03/10/2013,10191959
INSERTED DETAIL,Resources & Corporate Governance ,Domestic Waste Collection,WWC00,Agency Staff,0003,628.67,Blue Arrow Limited,145492,03/10/2013,10191959
INSERTED DETAIL,Resources & Corporate Governance ,Grounds Maintenance,WGM00,Agency Staff,0003,257.60,Blue Arrow Limited,145492,17/10/2013,10192519
INSERTED DETAIL,Resources & Corporate Governance,Housing Maintenance,WHM00,Agency Staff,0003,1586.15,Blue Arrow Limited,145492,17/10/2013,10192519
INSERTED DETAIL,Resources & Corporate Governance ,Street Cleansing,WSC00,Agency Staff,0003,911.09,Blue Arrow Limited,145492,17/10/2013,10192519
INSERTED DETAIL,Resources & Corporate Governance ,Domestic Waste Collection,WWC00,Agency Staff,0003,1120.12,Blue Arrow Limited,145492,17/10/2013,10192519
INSERTED DETAIL,Resources & Corporate Governance ,Grounds Maintenance,WGM00,Agency Staff,0003,330.40,Blue Arrow Limited,145492,24/10/2013,10192820
INSERTED DETAIL,Resources & Corporate Governance,Housing Maintenance,WHM00,Agency Staff,0003,1576.05,Blue Arrow Limited,145492,24/10/2013,10192820
INSERTED DETAIL,Resources & Corporate Governance ,Street Cleansing,WSC00,Agency Staff,0003,692.20,Blue Arrow Limited,145492,24/10/2013,10192820
INSERTED DETAIL,Resources & Corporate Governance ,Domestic Waste Collection,WWC00,Agency Staff,0003,773.74,Blue Arrow Limited,145492,24/10/2013,10192820
INSERTED DETAIL,Resources & Corporate Governance ,Grounds Maintenance,WGM00,Agency Staff,0003,330.97,Blue Arrow Limited,145492,24/10/2013,10193066
INSERTED DETAIL,Resources & Corporate Governance,Housing Maintenance,WHM00,Agency Staff,0003,1528.10,Blue Arrow Limited,145492,24/10/2013,10193066
INSERTED DETAIL,Resources & Corporate Governance ,Street Cleansing,WSC00,Agency Staff,0003,867.17,Blue Arrow Limited,145492,24/10/2013,10193066
INSERTED DETAIL,Resources & Corporate Governance ,Domestic Waste Collection,WWC00,Agency Staff,0003,959.93,Blue Arrow Limited,145492,24/10/2013,10193066
INSERTED DETAIL,Capital Program ,Open Spaces Refurbishment,LEI08,Capital Contract Payments,5000,2954.64,Nortoft Partnerships Ltd,145573,03/10/2013,10191867
INSERTED DETAIL,Capital Program ,Open Spaces Refurbishment,LEI08,Capital Contract Payments,5000,450.00,Nortoft Partnerships Ltd,145573,31/10/2013,10192716
INSERTED DETAIL,Resources & Corporate Governance,Housing Maintenance,WHM00,Materials,0303,503.41,Sapphire Glass Merchants,146549,10/10/2013,10191048
INSERTED DETAIL,Resources & Corporate Governance,Housing Maintenance,WHM00,External Contractor & Operator,0742,1025.00,Mick Brown Plastering,146699,24/10/2013,10193023
INSERTED DETAIL,Economy Development & Culture,AGM Exhibitions/Outreach,AGM02,Other Miscellaneous Expenses,0444,1322.00,The Printing House Ltd,146767,03/10/2013,10191501
INSERTED DETAIL,Resources & Corporate Governance ,Domestic Waste Collection,WWC00,Agency Staff,0003,246.91,Fresh Recruitment Solutions (FRS) Ltd,146784,10/10/2013,10192269
INSERTED DETAIL,Resources & Corporate Governance ,Trade Waste Collection,WWC01,Agency Staff,0003,195.66,Fresh Recruitment Solutions (FRS) Ltd,146784,10/10/2013,10192269
INSERTED DETAIL,Resources & Corporate Governance ,Retired Employees,RET00,Additional Pension Payments,0014,11096.71,WCC Pension Fund,146914,10/10/2013,10191970
INSERTED DETAIL,Resources & Corporate Governance ,Retired Employees,RET00,Additional Pension Payments,0014,11096.71,WCC Pension Fund,146914,10/10/2013,10192196
INSERTED DETAIL,Resources & Corporate Governance ,Retired Employees,RET00,Additional Pension Payments,0014,11096.71,WCC Pension Fund,146914,31/10/2013,10193263
INSERTED DETAIL,Economy Development & Culture,Art Gallery and Museum,AGM00,Postage & Distribution,0370,125.55,TNT Post Midlands Ltd,146983,03/10/2013,10191282
INSERTED DETAIL,Economy Development & Culture,Building Control Services,BCS00,Postage & Distribution,0370,0.78,TNT Post Midlands Ltd,146983,03/10/2013,10191282
INSERTED DETAIL,Economy Development & Culture,Building Control Services Non-Fee Earning Account,BCS01,Postage & Distribution,0370,0.78,TNT Post Midlands Ltd,146983,03/10/2013,10191282
INSERTED DETAIL,Economy Development & Culture,Building Regulation Fee Earning Account,BCS99,Postage & Distribution,0370,14.09,TNT Post Midlands Ltd,146983,03/10/2013,10191282
INSERTED DETAIL,Economy Development & Culture,Car Parks General,CPK01,Postage & Distribution,0370,33.28,TNT Post Midlands Ltd,146983,03/10/2013,10191282
INSERTED DETAIL,Resources & Corporate Governance,Central Business Support Services,CSS15,Postage & Distribution,0370,25.53,TNT Post Midlands Ltd,146983,03/10/2013,10191282
INSERTED DETAIL,Resources & Corporate Governance ,Council Tax and NNDR Collection,CTX01,Postage & Distribution,0370,216.46,TNT Post Midlands Ltd,146983,03/10/2013,10191282
INSERTED DETAIL,Economy Development & Culture,Decrim. of Car Parking on street parking,DPE02,Postage & Distribution,0370,133.08,TNT Post Midlands Ltd,146983,03/10/2013,10191282
INSERTED DETAIL,Resources & Corporate Governance ,Electoral Registration,ERG00,Postage & Distribution,0370,18.69,TNT Post Midlands Ltd,146983,03/10/2013,10191282
INSERTED DETAIL,Sustainable Inclusive Communities,Housing Benefit Administration,HBA00,Postage & Distribution,0370,75.21,TNT Post Midlands Ltd,146983,03/10/2013,10191282
INSERTED DETAIL,Housing Revenue Account ,Supervision and Management General,MAN00,Postage & Distribution,0370,41.16,TNT Post Midlands Ltd,146983,03/10/2013,10191282
INSERTED DETAIL,Resources & Corporate Governance ,General Administration,WAD00,Postage & Distribution,0370,2.37,TNT Post Midlands Ltd,146983,03/10/2013,10191282
INSERTED DETAIL,Economy Development & Culture,Art Gallery and Museum,AGM00,Postage & Distribution,0370,66.91,TNT Post Midlands Ltd,146983,03/10/2013,10191502
INSERTED DETAIL,Economy Development & Culture,Building Control Services,BCS00,Postage & Distribution,0370,0.67,TNT Post Midlands Ltd,146983,03/10/2013,10191502
INSERTED DETAIL,Economy Development & Culture,Building Control Services Non-Fee Earning Account,BCS01,Postage & Distribution,0370,0.67,TNT Post Midlands Ltd,146983,03/10/2013,10191502
INSERTED DETAIL,Economy Development & Culture,Building Regulation Fee Earning Account,BCS99,Postage & Distribution,0370,12.07,TNT Post Midlands Ltd,146983,03/10/2013,10191502
INSERTED DETAIL,Resources & Corporate Governance,Central Business Support Services,CSS15,Postage & Distribution,0370,23.78,TNT Post Midlands Ltd,146983,03/10/2013,10191502
INSERTED DETAIL,Resources & Corporate Governance ,Council Tax and NNDR Collection,CTX01,Postage & Distribution,0370,176.98,TNT Post Midlands Ltd,146983,03/10/2013,10191502
INSERTED DETAIL,Resources & Corporate Governance ,Electoral Registration,ERG00,Postage & Distribution,0370,38.04,TNT Post Midlands Ltd,146983,03/10/2013,10191502
INSERTED DETAIL,Sustainable Inclusive Communities,Housing Benefit Administration,HBA00,Postage & Distribution,0370,113.25,TNT Post Midlands Ltd,146983,03/10/2013,10191502
INSERTED DETAIL,Housing Revenue Account ,Supervision and Management General,MAN00,Postage & Distribution,0370,29.41,TNT Post Midlands Ltd,146983,03/10/2013,10191502
INSERTED DETAIL,Resources & Corporate Governance ,General Administration,WAD00,Postage & Distribution,0370,10.20,TNT Post Midlands Ltd,146983,03/10/2013,10191502
INSERTED DETAIL,Economy Development & Culture,Art Gallery and Museum,AGM00,Postage & Distribution,0370,28.71,TNT Post Midlands Ltd,146983,03/10/2013,10191796
INSERTED DETAIL,Economy Development & Culture,Building Control Services,BCS00,Postage & Distribution,0370,0.75,TNT Post Midlands Ltd,146983,03/10/2013,10191796
INSERTED DETAIL,Economy Development & Culture,Building Control Services Non-Fee Earning Account,BCS01,Postage & Distribution,0370,0.76,TNT Post Midlands Ltd,146983,03/10/2013,10191796
INSERTED DETAIL,Economy Development & Culture,Building Regulation Fee Earning Account,BCS99,Postage & Distribution,0370,13.59,TNT Post Midlands Ltd,146983,03/10/2013,10191796
INSERTED DETAIL,Resources & Corporate Governance,Central Business Support Services,CSS15,Postage & Distribution,0370,45.53,TNT Post Midlands Ltd,146983,03/10/2013,10191796
INSERTED DETAIL,Resources & Corporate Governance ,Council Tax and NNDR Collection,CTX01,Postage & Distribution,0370,162.61,TNT Post Midlands Ltd,146983,03/10/2013,10191796
INSERTED DETAIL,Resources & Corporate Governance ,Electoral Registration,ERG00,Postage & Distribution,0370,3.70,TNT Post Midlands Ltd,146983,03/10/2013,10191796
INSERTED DETAIL,Sustainable Inclusive Communities,Housing Benefit Administration,HBA00,Postage & Distribution,0370,178.10,TNT Post Midlands Ltd,146983,03/10/2013,10191796
INSERTED DETAIL,Housing Revenue Account ,Supervision and Management General,MAN00,Postage & Distribution,0370,20.47,TNT Post Midlands Ltd,146983,03/10/2013,10191796
INSERTED DETAIL,Economy Development & Culture,Visitor Centre,VSC00,Postage & Distribution,0370,51.45,TNT Post Midlands Ltd,146983,03/10/2013,10191796
INSERTED DETAIL,Resources & Corporate Governance ,General Administration,WAD00,Postage & Distribution,0370,5.40,TNT Post Midlands Ltd,146983,03/10/2013,10191796
INSERTED DETAIL,Economy Development & Culture,Art Gallery and Museum,AGM00,Postage & Distribution,0370,24.58,TNT Post Midlands Ltd,146983,17/10/2013,10192241
INSERTED DETAIL,Economy Development & Culture,Building Control Services,BCS00,Postage & Distribution,0370,0.23,TNT Post Midlands Ltd,146983,17/10/2013,10192241
INSERTED DETAIL,Economy Development & Culture,Building Control Services Non-Fee Earning Account,BCS01,Postage & Distribution,0370,0.23,TNT Post Midlands Ltd,146983,17/10/2013,10192241
INSERTED DETAIL,Economy Development & Culture,Building Regulation Fee Earning Account,BCS99,Postage & Distribution,0370,4.20,TNT Post Midlands Ltd,146983,17/10/2013,10192241
INSERTED DETAIL,Resources & Corporate Governance,Central Business Support Services,CSS15,Postage & Distribution,0370,80.99,TNT Post Midlands Ltd,146983,17/10/2013,10192241
INSERTED DETAIL,Resources & Corporate Governance ,Council Tax and NNDR Collection,CTX01,Postage & Distribution,0370,57.56,TNT Post Midlands Ltd,146983,17/10/2013,10192241
INSERTED DETAIL,Resources & Corporate Governance ,Electoral Registration,ERG00,Postage & Distribution,0370,5.24,TNT Post Midlands Ltd,146983,17/10/2013,10192241
INSERTED DETAIL,Sustainable Inclusive Communities,Housing Benefit Administration,HBA00,Postage & Distribution,0370,144.96,TNT Post Midlands Ltd,146983,17/10/2013,10192241
INSERTED DETAIL,Housing Revenue Account ,Supervision and Management General,MAN00,Postage & Distribution,0370,104.72,TNT Post Midlands Ltd,146983,17/10/2013,10192241
INSERTED DETAIL,Economy Development & Culture,Visitor Centre,VSC00,Postage & Distribution,0370,5.24,TNT Post Midlands Ltd,146983,17/10/2013,10192241
INSERTED DETAIL,Resources & Corporate Governance ,General Administration,WAD00,Postage & Distribution,0370,11.53,TNT Post Midlands Ltd,146983,17/10/2013,10192241
INSERTED DETAIL,Economy Development & Culture,Art Gallery and Museum,AGM00,Postage & Distribution,0370,0.26,TNT Post Midlands Ltd,146983,24/10/2013,10192647
INSERTED DETAIL,Economy Development & Culture,Building Control Services,BCS00,Postage & Distribution,0370,0.58,TNT Post Midlands Ltd,146983,24/10/2013,10192647
INSERTED DETAIL,Economy Development & Culture,Building Control Services Non-Fee Earning Account,BCS01,Postage & Distribution,0370,0.58,TNT Post Midlands Ltd,146983,24/10/2013,10192647
INSERTED DETAIL,Economy Development & Culture,Building Regulation Fee Earning Account,BCS99,Postage & Distribution,0370,10.51,TNT Post Midlands Ltd,146983,24/10/2013,10192647
INSERTED DETAIL,Resources & Corporate Governance,Central Business Support Services,CSS15,Postage & Distribution,0370,50.68,TNT Post Midlands Ltd,146983,24/10/2013,10192647
INSERTED DETAIL,Resources & Corporate Governance ,Council Tax and NNDR Collection,CTX01,Postage & Distribution,0370,199.58,TNT Post Midlands Ltd,146983,24/10/2013,10192647
INSERTED DETAIL,Resources & Corporate Governance ,Electoral Registration,ERG00,Postage & Distribution,0370,4.17,TNT Post Midlands Ltd,146983,24/10/2013,10192647
INSERTED DETAIL,Sustainable Inclusive Communities,Housing Benefit Administration,HBA00,Postage & Distribution,0370,163.15,TNT Post Midlands Ltd,146983,24/10/2013,10192647
INSERTED DETAIL,Housing Revenue Account ,Supervision and Management General,MAN00,Postage & Distribution,0370,35.69,TNT Post Midlands Ltd,146983,24/10/2013,10192647
INSERTED DETAIL,Resources & Corporate Governance ,General Administration,WAD00,Postage & Distribution,0370,4.44,TNT Post Midlands Ltd,146983,24/10/2013,10192647
INSERTED DETAIL,Economy Development & Culture,Building Control Services,BCS00,Postage & Distribution,0370,0.65,TNT Post Midlands Ltd,146983,31/10/2013,10192865
INSERTED DETAIL,Economy Development & Culture,Building Control Services Non-Fee Earning Account,BCS01,Postage & Distribution,0370,0.65,TNT Post Midlands Ltd,146983,31/10/2013,10192865
INSERTED DETAIL,Economy Development & Culture,Building Regulation Fee Earning Account,BCS99,Postage & Distribution,0370,11.76,TNT Post Midlands Ltd,146983,31/10/2013,10192865
INSERTED DETAIL,Resources & Corporate Governance,Central Business Support Services,CSS15,Postage & Distribution,0370,63.20,TNT Post Midlands Ltd,146983,31/10/2013,10192865
INSERTED DETAIL,Resources & Corporate Governance ,Council Tax and NNDR Collection,CTX01,Postage & Distribution,0370,191.82,TNT Post Midlands Ltd,146983,31/10/2013,10192865
INSERTED DETAIL,Resources & Corporate Governance ,Electoral Registration,ERG00,Postage & Distribution,0370,14.62,TNT Post Midlands Ltd,146983,31/10/2013,10192865
INSERTED DETAIL,Sustainable Inclusive Communities,Housing Benefit Administration,HBA00,Postage & Distribution,0370,210.11,TNT Post Midlands Ltd,146983,31/10/2013,10192865
INSERTED DETAIL,Housing Revenue Account ,Supervision and Management General,MAN00,Postage & Distribution,0370,1172.67,TNT Post Midlands Ltd,146983,31/10/2013,10192865
INSERTED DETAIL,Resources & Corporate Governance ,General Administration,WAD00,Postage & Distribution,0370,2.69,TNT Post Midlands Ltd,146983,31/10/2013,10192865
INSERTED DETAIL,Resources & Corporate Governance ,Customer and Information Strategy,CIS10,Hardware Maintenance,0376,4080.00,NTA Monitor Ltd,147036,31/10/2013,10193152
INSERTED DETAIL,Resources & Corporate Governance ,General Administration,WAD00,Training fees,0011,3600.00,Waste Management Assessment Services Ltd,147065,10/10/2013,10192003
INSERTED DETAIL,Capital Program ,Kitchen Modifications,HIK10,Capital Contract Payments,5000,39750.00,CLC Contractors Ltd,147076,31/10/2013,10193251
INSERTED DETAIL,Resources & Corporate Governance,Housing Maintenance,WHM00,External Contractor & Operator,0742,4074.90,Intelligent Disabled Solutions Ltd,147081,03/10/2013,10191525
INSERTED DETAIL,Resources & Corporate Governance,Housing Maintenance,WHM00,External Contractor & Operator,0742,957.92,Intelligent Disabled Solutions Ltd,147081,03/10/2013,10191685
INSERTED DETAIL,Resources & Corporate Governance,Housing Maintenance,WHM00,External Contractor & Operator,0742,3203.20,Intelligent Disabled Solutions Ltd,147081,17/10/2013,10191843
INSERTED DETAIL,Resources & Corporate Governance ,Domestic Waste Collection,WWC00,External Contractor & Operator,0742,450.00,James Baxter Haulage Ltd,147159,24/10/2013,10192794
INSERTED DETAIL,Capital Program ,Queen's Diamond Jubilee Leisure Centre Project,LEI03,Capital Contract Payments,5000,580.60,B3 Architects,147190,17/10/2013,10192307
INSERTED DETAIL,Resources & Corporate Governance,Housing Maintenance,WHM00,External Contractor & Operator,0742,721.23,C H Electrical (Leics) Ltd,147209,10/10/2013,10192201
INSERTED DETAIL,Capital Program ,Vehicle Workshop Extension,VWE00,Capital Contract Payments,5000,4400.00,C H Electrical (Leics) Ltd,147209,17/10/2013,10192238
INSERTED DETAIL,Resources & Corporate Governance,Housing Maintenance,WHM00,External Contractor & Operator,0742,2840.00,C H Electrical (Leics) Ltd,147209,24/10/2013,10192795
INSERTED DETAIL,Resources & Corporate Governance,Corporate Property R&M,CPA01,R&M External Contractors,0100,828.40,JS Humidifiers plc,147263,24/10/2013,10192704
INSERTED DETAIL,Economy Development & Culture,The Benn Hall,BHL00,Contract Cleaning,0170,41.00,SJ Cleaning (Midlands) Ltd,147273,10/10/2013,10191430
INSERTED DETAIL,Sustainable Environment ,Cemeteries General,CEM00,Contract Cleaning,0170,33.00,SJ Cleaning (Midlands) Ltd,147273,10/10/2013,10191430
INSERTED DETAIL,Economy Development & Culture,James St. Multi-storey Car Park,CPK02,Contract Cleaning,0170,21.00,SJ Cleaning (Midlands) Ltd,147273,10/10/2013,10191430
INSERTED DETAIL,Resources & Corporate Governance ,Town Hall,OFF00,Contract Cleaning,0170,373.00,SJ Cleaning (Midlands) Ltd,147273,10/10/2013,10191430
INSERTED DETAIL,Economy Development & Culture,Town Centre Public Conveniences,PCS00,Contract Cleaning,0170,21.00,SJ Cleaning (Midlands) Ltd,147273,10/10/2013,10191430
INSERTED DETAIL,Sustainable Environment ,Parks,PKS00,Contract Cleaning,0170,41.00,SJ Cleaning (Midlands) Ltd,147273,10/10/2013,10191430
INSERTED DETAIL,Resources & Corporate Governance ,WSU Depot,WDP00,Contract Cleaning,0170,41.00,SJ Cleaning (Midlands) Ltd,147273,10/10/2013,10191430
INSERTED DETAIL,Resources & Corporate Governance,Corporate Property R&M,CPA01,R&M External Contractors,0100,3866.00,Arden Construction Ltd,147430,03/10/2013,10189604
INSERTED DETAIL,Resources & Corporate Governance,Corporate Property R&M,CPA01,R&M External Contractors,0100,1608.75,Arden Construction Ltd,147430,24/10/2013,10192441
INSERTED DETAIL,Resources & Corporate Governance,Corporate Property R&M,CPA01,R&M External Contractors,0100,690.76,Arden Construction Ltd,147430,10/10/2013,10192442
INSERTED DETAIL,Resources & Corporate Governance ,IT Procurement,CMP00,IT Capital Expenditure,5025,15074.03,Commercial IT Services Ltd,147434,10/10/2013,10192245
INSERTED DETAIL,Resources & Corporate Governance ,Customer and Information Strategy,CIS10,Software Maintenance,0374,6174.18,Commercial IT Services Ltd,147434,10/10/2013,10192246
INSERTED DETAIL,Resources & Corporate Governance ,Customer and Information Strategy,CIS10,Software Maintenance,0374,24165.00,Commercial IT Services Ltd,147434,10/10/2013,10192320
INSERTED DETAIL,Capital Program ,Kitchen Modifications,HIK10,Capital Contract Payments,5000,5209.20,Rixonway Kitchens Ltd,147446,31/10/2013,10192678
INSERTED DETAIL,Capital Program ,Kitchen Modifications,HIK10,Capital Contract Payments,5000,4721.75,Rixonway Kitchens Ltd,147446,31/10/2013,10192679
INSERTED DETAIL,Capital Program ,Disabled Facilities Grant,REN01,Capital Grants,5014,825.00,Pollards Property Solution,147541,24/10/2013,10192653
INSERTED DETAIL,Resources & Corporate Governance ,Grounds Maintenance,WGM00,Vehicle Repair and Maintenance,0200,892.32,Tallis Amos Group Limited,147758,31/10/2013,10192520
INSERTED DETAIL,Capital Program ,Great Central Walk Bridge,LEI14,Capital Contract Payments,5000,8454.52,Currall Lewis & Martin (Construction) Ltd,147769,31/10/2013,10193090
INSERTED DETAIL,Capital Program ,Great Central Walk Bridge,LEI14,Capital Contract Payments,5000,9286.35,Currall Lewis & Martin (Construction) Ltd,147769,31/10/2013,10193091
INSERTED DETAIL,Capital Program ,Great Central Walk Bridge,LEI14,Capital Contract Payments,5000,23624.98,Currall Lewis & Martin (Construction) Ltd,147769,31/10/2013,10193092
INSERTED DETAIL,Capital Program ,Great Central Walk Bridge,LEI14,Capital Contract Payments,5000,27288.69,Currall Lewis & Martin (Construction) Ltd,147769,31/10/2013,10193093
INSERTED DETAIL,Capital Program ,Great Central Walk Bridge,LEI14,Capital Contract Payments,5000,13931.85,Currall Lewis & Martin (Construction) Ltd,147769,31/10/2013,10193094
INSERTED DETAIL,Resources & Corporate Governance,Housing Maintenance,WHM00,External Contractor & Operator,0742,506.40,Coventry Garage Doors,147883,10/10/2013,10192312
INSERTED DETAIL,Capital Program ,Queen's Diamond Jubilee Leisure Centre Project,LEI03,Capital Contract Payments,5000,124719.12,Shepherd Construction Ltd,148014,31/10/2013,10193139
INSERTED DETAIL,Resources & Corporate Governance ,TREE WORKS,WGM01,Tools,0304,567.45,Buxtons Limited,148015,10/10/2013,10191748
INSERTED DETAIL,Resources & Corporate Governance,Housing Maintenance,WHM00,External Contractor & Operator,0742,570.00,Dean Hudson,148035,03/10/2013,10191671
INSERTED DETAIL,Resources & Corporate Governance,Housing Maintenance,WHM00,External Contractor & Operator,0742,600.00,Dean Hudson,148035,10/10/2013,10192181
INSERTED DETAIL,Resources & Corporate Governance,Housing Maintenance,WHM00,External Contractor & Operator,0742,577.50,Dean Hudson,148035,10/10/2013,10192461
INSERTED DETAIL,Resources & Corporate Governance,Housing Maintenance,WHM00,External Contractor & Operator,0742,532.50,Dean Hudson,148035,17/10/2013,10192798
INSERTED DETAIL,Resources & Corporate Governance,Housing Maintenance,WHM00,External Contractor & Operator,0742,502.50,Dean Hudson,148035,24/10/2013,10193101
INSERTED DETAIL,Economy Development & Culture,Art Gallery and Museum,AGM00,Recruitment Expenses,0012,19.95,Team Prevent UK Ltd,148151,17/10/2013,10192469
INSERTED DETAIL,Resources & Corporate Governance ,Corporate Assurance,BTR40,Recruitment Expenses,0012,19.95,Team Prevent UK Ltd,148151,17/10/2013,10192469
INSERTED DETAIL,Resources & Corporate Governance,Customer Support Services,CSS00,Recruitment Expenses,0012,57.40,Team Prevent UK Ltd,148151,17/10/2013,10192469
INSERTED DETAIL,Resources & Corporate Governance,Apprenticeship Scheme,CSS25,Recruitment Expenses,0012,19.95,Team Prevent UK Ltd,148151,17/10/2013,10192469
INSERTED DETAIL,Resources & Corporate Governance ,Legal Services,DEM20,Recruitment Expenses,0012,19.95,Team Prevent UK Ltd,148151,17/10/2013,10192469
INSERTED DETAIL,Economy Development & Culture,Family Lifestyle Project,LSD11,Recruitment Expenses,0012,19.95,Team Prevent UK Ltd,148151,17/10/2013,10192469
INSERTED DETAIL,Housing Revenue Account ,Estate Management,MAN22,Recruitment Expenses,0012,19.95,Team Prevent UK Ltd,148151,17/10/2013,10192469
INSERTED DETAIL,Housing Revenue Account ,Property Maintenance,MAN23,Recruitment Expenses,0012,19.95,Team Prevent UK Ltd,148151,17/10/2013,10192469
INSERTED DETAIL,Resources & Corporate Governance ,Grounds Maintenance,WGM00,Recruitment Expenses,0012,19.95,Team Prevent UK Ltd,148151,17/10/2013,10192469
INSERTED DETAIL,Resources & Corporate Governance ,TREE WORKS,WGM01,Recruitment Expenses,0012,19.95,Team Prevent UK Ltd,148151,17/10/2013,10192469
INSERTED DETAIL,Resources & Corporate Governance ,Caldecott Park Cafe,WGM02,Recruitment Expenses,0012,19.95,Team Prevent UK Ltd,148151,17/10/2013,10192469
INSERTED DETAIL,Resources & Corporate Governance ,Garage Salaries,WVR03,Recruitment Expenses,0012,19.95,Team Prevent UK Ltd,148151,17/10/2013,10192469
INSERTED DETAIL,Housing Revenue Account ,Sheltered Housing,AGP00,Employee wellbeing/Other employee expenses,0021,195.00,Team Prevent UK Ltd,148151,17/10/2013,10192469
INSERTED DETAIL,Sustainable Inclusive Communities,Housing Benefit Administration,HBA00,Employee wellbeing/Other employee expenses,0021,85.00,Team Prevent UK Ltd,148151,17/10/2013,10192469
INSERTED DETAIL,Resources & Corporate Governance ,Grounds Maintenance,WGM00,Employee wellbeing/Other employee expenses,0021,17.50,Team Prevent UK Ltd,148151,17/10/2013,10192469
INSERTED DETAIL,Resources & Corporate Governance ,TREE WORKS,WGM01,Employee wellbeing/Other employee expenses,0021,17.50,Team Prevent UK Ltd,148151,17/10/2013,10192469
INSERTED DETAIL,Resources & Corporate Governance ,Street Cleansing,WSC00,Employee wellbeing/Other employee expenses,0021,74.75,Team Prevent UK Ltd,148151,17/10/2013,10192469
INSERTED DETAIL,Resources & Corporate Governance ,Domestic Waste Collection,WWC00,Employee wellbeing/Other employee expenses,0021,170.00,Team Prevent UK Ltd,148151,17/10/2013,10192469
INSERTED DETAIL,Resources & Corporate Governance,Housing Maintenance,WHM00,Tools,0304,850.00,Brown Power Engineering Ltd,148262,03/10/2013,10191955
INSERTED DETAIL,Resources & Corporate Governance ,TREE WORKS,WGM01,Vehicle Repair and Maintenance,0200,9.00,Brown Power Engineering Ltd,148262,17/10/2013,10192509
INSERTED DETAIL,Resources & Corporate Governance ,TREE WORKS,WGM01,Materials,0303,234.80,Brown Power Engineering Ltd,148262,17/10/2013,10192509
INSERTED DETAIL,Resources & Corporate Governance ,TREE WORKS,WGM01,Tools,0304,1031.60,Brown Power Engineering Ltd,148262,17/10/2013,10192509
INSERTED DETAIL,Resources & Corporate Governance ,TREE WORKS,WGM01,Personal Protective Clothing,0340,6.37,Brown Power Engineering Ltd,148262,17/10/2013,10192509
INSERTED DETAIL,Sustainable Environment ,Parks,PKS00,Materials,0303,876.90,Brown Power Engineering Ltd,148262,31/10/2013,10193217
INSERTED DETAIL,Sustainable Inclusive Communities,Woodside Park,TVR00,R&M External Contractors,0100,600.00,Suck'cess,148285,17/10/2013,10192636
INSERTED DETAIL,Sustainable Inclusive Communities,Woodside Park,TVR00,External Contractor & Operator,0742,1728.00,Suck'cess,148285,17/10/2013,10192650
INSERTED DETAIL,Resources & Corporate Governance ,TREE WORKS,WGM01,Vehicle Repair and Maintenance,0200,470.00,Vermeer UK,148325,31/10/2013,10192627
INSERTED DETAIL,Capital Program ,Pettiver Crescent,PCH00,Capital Contract Payments,5000,2000.00,"Gotch, Saunders & Surridge LLP , t/a GSS Architecture",148432,10/10/2013,10192410
INSERTED DETAIL,Resources & Corporate Governance,Housing Maintenance,WHM00,Materials,0303,520.00,A & A Lamb Ltd,148461,17/10/2013,10192512
INSERTED DETAIL,Resources & Corporate Governance,Housing Maintenance,WHM00,External Contractor & Operator,0742,1620.00,Garforth Scaffolding Ltd,148530,31/10/2013,10190895
INSERTED DETAIL,Resources & Corporate Governance,Housing Maintenance,WHM00,External Contractor & Operator,0742,3460.00,Garforth Scaffolding Ltd,148530,24/10/2013,10192209
INSERTED DETAIL,Resources & Corporate Governance ,IT Procurement,CMP00,IT Capital Expenditure,5025,21894.77,Intrinsic Technology Ltd,148620,10/10/2013,10192248
INSERTED DETAIL,Economy Development & Culture,Grants and Subscriptions,LGS00,Grants To Voluntary Organisations,0720,1000.00,Fareham Youth Trust,148627,24/10/2013,10192949
INSERTED DETAIL,Capital Program ,Open Spaces Refurbishment,LEI08,Capital Contract Payments,5000,1610.00,Kova Landscape Ltd,148635,31/10/2013,10192510
INSERTED DETAIL,Capital Program ,Open Spaces Refurbishment,LEI08,Capital Contract Payments,5000,1512.00,Kova Landscape Ltd,148635,31/10/2013,10192511
INSERTED DETAIL,Resources & Corporate Governance ,General Financial Services,GFS00,External Contractor & Operator,0742,1875.00,Arlingclose Ltd,148743,17/10/2013,10192773
INSERTED DETAIL,Resources & Corporate Governance ,General Administration,WAD00,Training fees,0011,594.00,Radiodetection Limited,148837,31/10/2013,10192513
INSERTED DETAIL,Housing Revenue Account ,Unplanned Maintenance and Repair,UMR00,R&M External Contractors,0100,763.37,Robert Heath Heating Ltd,148858,03/10/2013,10191668
INSERTED DETAIL,Housing Revenue Account ,Gas Heating Systems,UMR01,R&M External Contractors,0100,1386.91,Robert Heath Heating Ltd,148858,03/10/2013,10191668
INSERTED DETAIL,Housing Revenue Account ,Repairs and Maintenance - Void works,UMR09,R&M External Contractors,0100,512.50,Robert Heath Heating Ltd,148858,03/10/2013,10191668
INSERTED DETAIL,Housing Revenue Account ,Gas Heating Systems,UMR01,R&M External Contractors,0100,866.92,Robert Heath Heating Ltd,148858,17/10/2013,10192347
INSERTED DETAIL,Housing Revenue Account ,Unplanned Maintenance and Repair,UMR00,R&M External Contractors,0100,301.26,Robert Heath Heating Ltd,148858,10/10/2013,10192432
INSERTED DETAIL,Housing Revenue Account ,Gas Heating Systems,UMR01,R&M External Contractors,0100,206.04,Robert Heath Heating Ltd,148858,10/10/2013,10192432
INSERTED DETAIL,Housing Revenue Account ,Repairs and Maintenance - Void works,UMR09,R&M External Contractors,0100,323.75,Robert Heath Heating Ltd,148858,10/10/2013,10192432
INSERTED DETAIL,Housing Revenue Account ,Gas Heating Systems,UMR01,R&M External Contractors,0100,23230.00,Robert Heath Heating Ltd,148858,17/10/2013,10192558
INSERTED DETAIL,Capital Program ,Bathroom Modifications,HIS01,Capital Contract Payments,5000,900.00,Capita Property & Infrastructure Ltd,148946,10/10/2013,10192210
INSERTED DETAIL,Economy Development & Culture,The Benn Hall,BHL00,Purchases for Resale,0305,649.32,Matthew Clark Wholesale Ltd,148975,03/10/2013,10191813
INSERTED DETAIL,Economy Development & Culture,The Benn Hall,BHL00,Purchases for Resale,0305,1421.48,Matthew Clark Wholesale Ltd,148975,17/10/2013,10192584
INSERTED DETAIL,Economy Development & Culture,The Benn Hall,BHL00,Purchases for Resale,0305,822.78,Matthew Clark Wholesale Ltd,148975,17/10/2013,10192708
INSERTED DETAIL,Economy Development & Culture,The Benn Hall,BHL00,Purchases for Resale,0305,1008.47,Matthew Clark Wholesale Ltd,148975,31/10/2013,10193149
INSERTED DETAIL,Resources & Corporate Governance ,"Communications, Consultation and Information Team",BTR20,Publicity & Marketing,0377,740.72,Deccaprint LLP,148999,03/10/2013,10191747
INSERTED DETAIL,Resources & Corporate Governance,Housing Maintenance,WHM00,External Contractor & Operator,0742,530.00,D & M Ball Carpets,149023,03/10/2013,10191718
INSERTED DETAIL,Resources & Corporate Governance,Housing Maintenance,WHM00,External Contractor & Operator,0742,500.00,PJR Services,149062,03/10/2013,10191705
INSERTED DETAIL,Resources & Corporate Governance,Housing Maintenance,WHM00,External Contractor & Operator,0742,500.00,PJR Services,149062,17/10/2013,10192736
INSERTED DETAIL,Resources & Corporate Governance,Housing Maintenance,WHM00,External Contractor & Operator,0742,500.00,PJR Services,149062,17/10/2013,10192737
INSERTED DETAIL,Resources & Corporate Governance,Housing Maintenance,WHM00,External Contractor & Operator,0742,500.00,PJR Services,149062,24/10/2013,10193106
INSERTED DETAIL,Economy Development & Culture,Gypsy and Traveller Enforcement,PLN10,External Legal Costs,0741,473.00,The Bailiff Company,149091,03/10/2013,10191409
INSERTED DETAIL,Housing Revenue Account ,Unplanned Maintenance and Repair,UMR00,R&M External Contractors,0100,40.00,Elite Surveyors Ltd,149107,24/10/2013,10192879
INSERTED DETAIL,Housing Revenue Account ,Repairs and Maintenance - Void works,UMR09,R&M External Contractors,0100,520.00,Elite Surveyors Ltd,149107,24/10/2013,10192879
INSERTED DETAIL,Resources & Corporate Governance ,IT Procurement,CMP00,IT Capital Expenditure,5025,14424.15,ICOMM Technologies Ltd,149115,17/10/2013,10190102
INSERTED DETAIL,Resources & Corporate Governance ,Customer and Information Strategy,CIS10,Software Maintenance,0374,1700.00,ICOMM Technologies Ltd,149115,17/10/2013,10191209
INSERTED DETAIL,Housing Revenue Account ,Sheltered Housing,AGP00,Contract Cleaning,0170,11850.58,Superclean Services Wothorpe,149153,03/10/2013,10192047
INSERTED DETAIL,Sustainable Inclusive Communities,Housing Options Team,HOT00,Contract Cleaning,0170,112.51,Superclean Services Wothorpe,149153,03/10/2013,10192047
INSERTED DETAIL,Housing Revenue Account ,Estate Management,MAN22,Contract Cleaning,0170,2552.47,Superclean Services Wothorpe,149153,03/10/2013,10192047
INSERTED DETAIL,Housing Revenue Account ,Multi-Storey Flats,MSF00,Contract Cleaning,0170,1434.45,Superclean Services Wothorpe,149153,03/10/2013,10192047
INSERTED DETAIL,Resources & Corporate Governance ,Town Hall,OFF00,Contract Cleaning,0170,4195.83,Superclean Services Wothorpe,149153,24/10/2013,10192048
INSERTED DETAIL,Sustainable Environment ,Parks,PKS00,Contract Cleaning,0170,200.00,Superclean Services Wothorpe,149153,24/10/2013,10192048
INSERTED DETAIL,Resources & Corporate Governance ,WSU Depot,WDP00,Contract Cleaning,0170,395.83,Superclean Services Wothorpe,149153,24/10/2013,10192048
INSERTED DETAIL,Resources & Corporate Governance,Housing Maintenance,WHM00,External Contractor & Operator,0742,781.25,R Duffy Services,149161,03/10/2013,10191673
INSERTED DETAIL,Resources & Corporate Governance,Housing Maintenance,WHM00,External Contractor & Operator,0742,993.75,R Duffy Services,149161,03/10/2013,10191675
INSERTED DETAIL,Resources & Corporate Governance,Housing Maintenance,WHM00,External Contractor & Operator,0742,687.50,R Duffy Services,149161,24/10/2013,10193097
INSERTED DETAIL,Economy Development & Culture,Economic Development General,ECD00,Other,0763,2525.00,Coton Forward,149194,10/10/2013,10192448
INSERTED DETAIL,Economy Development & Culture,Positive Futures,LSD04,Development Activities,0450,1830.00,Rock UK Adventure Centres Ltd,149224,17/10/2013,10192812
INSERTED DETAIL,Resources & Corporate Governance,Housing Maintenance,WHM00,External Contractor & Operator,0742,822.00,Stormseal Roofing (Nationwide) Ltd,149226,17/10/2013,10192002
INSERTED DETAIL,Sustainable Environment ,Parks,PKS00,R&M External Contractors,0100,472.00,AHS Ltd,149255,24/10/2013,10191135
INSERTED DETAIL,Sustainable Inclusive Communities,Housing Options Team,HOT00,Rents,0140,2970.00,Croft Hotel,149257,10/10/2013,10191192
INSERTED DETAIL,Economy Development & Culture,The Benn Hall,BHL00,Special Events/Activities,0447,700.00,Gag Reflex Ltd,149264,17/10/2013,10192866
INSERTED DETAIL,Capital Program ,Pettiver Crescent,PCH00,Capital Contract Payments,5000,59865.04,Wates Construction Ltd,149267,17/10/2013,10192735
INSERTED DETAIL,Resources & Corporate Governance ,General Administration,WAD00,Training fees,0011,1150.00,Associated Transport Tuition,149284,31/10/2013,10192599
INSERTED DETAIL,Resources & Corporate Governance ,Garage Internal,WVR01,Materials,0303,1127.85,Grenke Leasing Ltd,149293,03/10/2013,10191933
INSERTED DETAIL,Economy Development & Culture,Grants and Subscriptions,LGS00,Grants To Voluntary Organisations,0720,680.00,1st Brinklow Scout Group,149304,10/10/2013,10192310
INSERTED DETAIL,Housing Revenue Account ,Supervision and Management General,MAN00,Movement Incentives,0454,500.00,REDACTED PERSONAL DATA,149310,10/10/2013,10192393
INSERTED DETAIL,Resources & Corporate Governance ,Benn Hall ICT,CMP24,IT Capital Expenditure,5025,4329.45,Delta Computer Services,149319,17/10/2013,10192649
INSERTED DETAIL,Economy Development & Culture,Planning General/Income,PLN00,External Legal Costs,0741,1850.00,James Corbet Burcher,149320,24/10/2013,10192685
detail,Resources & Corporate Governance ,General Administration,WAD00,Training fees,0011,500.00,Sarina Russo Job Access (GB) Pty Ltd,149355,31/10/2013,10193255
,Resources & Corporate Governance ,Legal Services,DEM20,Training fees,0011,550.00,CILEX,,07/10/2013,29574
,Resources & Corporate Governance,Housing Maintenance,WHM00,Tools,0304,699.47,Machine Mart,,07/10/2013,29574
,Sustainable Enironment,East European Violence,CAD32,Overseas payment,0303,831.00,Wydawnicttwo Edukacyjne,,14/10/2013,29482
,,Balance Sheet,BS,Cov & Warks Pooling Fund,9476,1380109.00,Cov & Warks Pooling Fund,,18/10/2013,29503
,,Balance Sheet,BS,Business Rate Retention Scheme payment,9476,2118341.00,CLG,,21/10/2013,29525
,,Balance Sheet,BS,Business Rate Retention Scheme payment,9476,424665.00,WCC County Fund,,21/10/2013,29524
,Resources & Corporate Governance ,General Financial Services,GFS00,Payment Card Costs,0444,1016.04,Capita,,25/10/2013,29566
